Workbook

Sheet Производственная программа
B1: ПРОИЗВОДСТВЕННАЯ ПРОГРАММА 2022-2028
IU2: - Начало СМР
HW3: ● | HX3: - Внутреннее согласование архитектурно-градостроительной концепции застройки в АБД проведено; | II3: ▪ | IJ3: - разрешения на строительство получено; | IU3: - СМР
HW4: ● | HX4: -В УАиГ получено согласование архитектурной концепции с эскизом застройки ; | II4: ▪ | IJ4: - старт продаж | IU4: - Производство панелей
HW5: ● | HX5: - Эскизный проект (1 этап) согласован; | II5: ▪ | IJ5: - получен ЗОС; | IU5: - Ввод объекта в эксплуатацию
HW6: ● | HX6: - Утверждение отклонений от предельных параметров разрешенного строительства; | II6: ▪ | IJ6: - зарегистрирована превая квартира на покупателя/раскрыты эскроу счета; | IT6: ДДУ | IU6: - Передача ключей по ДДУ
B7: Фасад 2023-Утеплитель
A8: № п/п | B8: № п/п | C8: Код по 1C | D8: Наименование объектов | E8: Общая площадь здания, м2 | F8: Материал | G8: Характеристика | H8: ед.изм | I8: Количество | J8: Продаваемая площадь, м2 | K8: Площадь квартир, м2 | L8: Площадь коммерции, м2 | M8: Паркинги, маш/мест | N8: Кол-во квартир | O8: Кол-во БС | P8: Этажность (жилые этажи) | Q8: Кол-во домов | R8: Конструктив | S8: Тип панелей | T8: Тип проектирования | U8: Полный объем м3 панель | V8: Полный объем шт панель | W8: Каркасы м3 | X8: Площадь кладовых, м2 | Y8: Фактический объем панелей м3 | Z8: Разница панели м3 | AA8: КПД м3 2020 | AB8: Каркасы м3 | AC8: каркасы разница м3 | AE8: Фаза Прединвест/ Инвест | AF8: Комментарии | AG8: План на 24.03.2021 | AS8: Проноз на 23.11.2021 | BE8: Проноз на 14.03.2022 | BQ8: Программа на февраль 2020 | BS8: Программа на июль 2020 | BU8: Программа на 10.12.2020 | BW8: Программа на 17.12.2020 | BY8: Программа на 20.01.2021 | CA8: Программа на 10.02.2021 | CC8: Программа на 20.02.2021 | CE8: Программа на 01.03.2021 | CG8: Программа на 09.03.21 | CI8: Программа на 19.03.21 | CK8: Программа на 31.03.21 | CM8: Программа на 09.04.21 | CO8: Программа на 19.04.21 | CQ8: Программа на 28.04.21 | CS8: Программа на 17.05.21 | CU8: Программа на 02.06.21 | CW8: Программа на 18.06.21 | CY8: Программа на 29.06.21 | DA8: Программа на 08.07.21 | DC8: Программа на 23.07.21 | DE8: Программа на 26.07.21 | DG8: Программа на 11.08.21 | DI8: Программа на 19.08.21 | DK8: Программа на 27.08.21 | DM8: Программа на 09.09.21 | DP8: Программа на 22.09.21 | DS8: Программа на 11.10.21 | DV8: Программа на 10.11.21 | DY8: Программа на 29.11.21 | EB8: Программа на 07.12.21 | EE8: Срок СМР (мес.) | EF8: Срок СМР (мес.) | EG8: Согласов-е АГК в АБД | EH8: Согласов-е ЭП 1 этап в УАиГ | EI8: Программа на 14.12.21 | EL8: Программа на 27.12.21 | EO8: Срок СМР (мес.) | EP8: Программа на 24.01.21 | ES8: Программа на 04.02.22 | EV8: Программа на 11.02.22 | EY8: Программа на 21.02.22 | FB8: Программа на 05.03.22 | FE8: Программа на 18.03.22 | FH8: Программа на 01.04.22 | FK8: Программа на 15.04.22 | FN8: Программа на 18.04.22 | FQ8: Программа на 22.04.22 по ПП ДЭ | FT8: Срок СМР (мес.) | FU8: Программа на 29.04.22 по финплану | FX8: Программа на 13.05.22 | GA8: Программа на 23.05.22 | GD8: Программа на 27.05.22 | GG8: Программа на 10.06.22 | GJ8: Программа на 24.06.22 | GM8: Программа на 08.07.22 | GP8: Программа на 22.07.22 | GS8: Программа на 05.08.22 | GV8: Программа на 19.08.22 | GY8: Программа на 02.09.22 | HB8: Программа на 16.09.22 | HE8: Программа на 30.09.22 | HH8: Программа на 14.10.22 | HK8: Программа на 28.10.22 | HN8: Программа на 11.11.22 | HQ8: Статус | HR8: Проектировщик | HT8: Ген. Подрядчик | HU8: Срок РНС до | HV8: Передача ключей по ДДУ (обяз-ва) | HW8: 2021 | II8: КПД 2021 | IJ8: ВВОД 2021 | IK8: ЗАДЕЛ 2021 | IL8: Проектирование 2021 | IM8: 2023
AG9: ТЗ на концепцию | AH9: Согл. конц. в АБД | AI9: Согл. конц. в УАиГ | AJ9: Согласование ЭП 1 этап | AK9: Утвержение отклонений | AL9: Положительная экспертиза | AM9: Старт продаж | AN9: Выдача КЖИ | AO9: Производство панелей | AP9: Получение ЗОС | AQ9: Раскрытие эскроу-счетов | AR9: Ввод по БАНКУ | AS9: ТЗ на концепцию | AT9: Согл. конц. в АБД | AU9: Согл. конц. в УАиГ | AV9: Согласование ЭП 1 этап | AW9: Утвержение отклонений | AX9: Положительная экспертиза | AY9: Старт продаж | AZ9: Выдача КЖИ | BA9: Производство панелей | BB9: Получение ЗОС | BC9: Раскрытие эскроу-счетов | BD9: Ввод по БАНКУ | BE9: ТЗ на концепцию | BF9: Согл. конц. в АБД | BG9: Согл. конц. в УАиГ | BH9: Согласование ЭП 1 этап | BI9: Утвержение отклонений | BJ9: Положительная экспертиза | BK9: Старт продаж | BL9: Выдача КЖИ | BM9: Производство панелей | BN9: Получение ЗОС | BO9: Раскрытие эскроу-счетов | BP9: Ввод по БАНКУ | BQ9: Разрешение | BR9: Ввод объекта | BS9: Разрешение | BT9: Ввод объекта | BU9: Разрешение | BV9: Ввод объекта | BW9: Разрешение | BX9: Ввод объекта | BY9: Разрешение | BZ9: Ввод объекта | CA9: Разрешение | CB9: Ввод объекта | CC9: Разрешение | CD9: Ввод объекта | CE9: Разрешение | CF9: Ввод объекта | CG9: Разрешение | CH9: Ввод объекта | CI9: Разрешение | CJ9: Ввод объекта | CK9: Разрешение | CL9: Ввод объекта | CM9: Разрешение | CN9: Ввод объекта | CO9: Разрешение | CP9: Ввод объекта | CQ9: Разрешение | CR9: Ввод объекта | CS9: Разрешение | CT9: Ввод объекта | CU9: Разрешение | CV9: Ввод объекта | CW9: Разрешение | CX9: Ввод объекта | CY9: Разрешение | CZ9: Ввод объекта | DA9: Разрешение | DB9: Ввод объекта | DC9: Разрешение | DD9: Ввод объекта | DE9: Разрешение | DF9: Ввод объекта | DG9: Разрешение | DH9: Ввод объекта | DI9: Разрешение | DJ9: Ввод объекта | DK9: Разрешение | DL9: Ввод объекта | DM9: Разрешение | DN9: Начало СМР | DO9: Ввод объекта | DP9: Разрешение | DQ9: Начало СМР | DR9: Ввод объекта | DS9: Разрешение | DT9: Начало СМР | DU9: Ввод объекта | DV9: Разрешение | DW9: Начало СМР | DX9: Ввод объекта | DY9: Разрешение | DZ9: Начало СМР | EA9: Ввод объекта | EB9: Разрешение | EC9: Начало СМР | ED9: Ввод объекта | EE9: Начало СМР - Ввод | EF9: РНС - Ввод | EI9: Разрешение | EJ9: Начало СМР | EK9: Ввод объекта | EL9: Разрешение | EM9: Начало СМР | EN9: Ввод объекта | EO9: РНС - Ввод | EP9: Разрешение | EQ9: Начало СМР | ER9: Ввод объекта | ES9: Разрешение | ET9: Начало СМР | EU9: Ввод объекта | EV9: Разрешение | EW9: Начало СМР | EX9: Ввод объекта | EY9: Разрешение | EZ9: Начало СМР | FA9: Ввод объекта | FB9: Разрешение | FC9: Начало СМР | FD9: Ввод объекта | FE9: Разрешение | FF9: Начало СМР | FG9: Ввод объекта | FH9: Разрешение | FI9: Начало СМР | FJ9: Ввод объекта | FK9: Разрешение | FL9: Начало СМР | FM9: Ввод объекта | FN9: Разрешение | FO9: Начало СМР | FP9: Ввод объекта | FQ9: Разрешение | FR9: Начало СМР | FS9: Ввод объекта | FT9: Начало СМР - Ввод | FU9: Разрешение | FV9: Начало СМР | FW9: Ввод объекта | FX9: Разрешение | FY9: Начало СМР | FZ9: Ввод объекта | GA9: Разрешение | GB9: Начало СМР | GC9: Ввод объекта | GD9: Разрешение | GE9: Начало СМР | GF9: Ввод объекта | GG9: Разрешение | GH9: Начало СМР | GI9: Ввод объекта | GJ9: Разрешение | GK9: Начало СМР | GL9: Ввод объекта | GM9: Разрешение | GN9: Начало СМР | GO9: Ввод объекта | GP9: Разрешение | GQ9: Начало СМР | GR9: Ввод объекта | GS9: Разрешение | GT9: Начало СМР | GU9: Ввод объекта | GV9: Разрешение | GW9: Начало СМР | GX9: Ввод объекта | GY9: Разрешение | GZ9: Начало СМР | HA9: Ввод объекта | HB9: Разрешение | HC9: Начало СМР | HD9: Ввод объекта | HE9: Разрешение | HF9: Начало СМР | HG9: Ввод объекта | HH9: Разрешение | HI9: Начало СМР | HJ9: Ввод объекта | HK9: Разрешение | HL9: Начало СМР | HM9: Ввод объекта | HN9: Разрешение | HO9: Начало СМР | HP9: Ввод объекта | HR9: АГК-ЭП | HS9: ЭП-Эксперт | HW9: янв | HX9: фев | HY9: мар | HZ9: апр | IA9: май | IB9: июн | IC9: июл | ID9: авг | IE9: сен | IF9: окт | IG9: ноя | IH9: дек | II9: м3 | IJ9: м2 | IK9: м2 | IL9: м2 | IM9: янв | IN9: фев | IO9: мар | IP9: апр | IQ9: май | IR9: июн | IS9: июл | IT9: авг | IU9: сен | IV9: окт | IW9: ноя | IX9: дек
A10: 1 | B10: 1 | C10: 2 | D10: 2 | J10: 3 | K10: 4 | L10: 5 | M10: 6 | N10: 7 | O10: 14 | P10: 15 | Q10: 16 | R10: 17 | S10: 18 | T10: 19 | U10: 20 | V10: 21 | W10: 22 | Y10: 18 | Z10: 19 | AA10: 20 | AB10: 21 | AC10: 22 | AD10: 23 | AE10: 24 | AF10: 25 | AG10: 26 | AH10: 27 | AI10: 28 | AJ10: 29 | AK10: 30 | AL10: 31 | AM10: 32 | AN10: 33 | AO10: 34 | AP10: 35 | AQ10: 36 | AR10: 37 | AS10: 38 | AT10: 39 | AU10: 40 | AV10: 41 | AW10: 42 | AX10: 43 | AY10: 44 | AZ10: 45 | BA10: 46 | BB10: 47 | BC10: 48 | BD10: 49 | BE10: 38 | BF10: 39 | BG10: 40 | BH10: 41 | BI10: 42 | BJ10: 43 | BK10: 44 | BL10: 45 | BM10: 46 | BN10: 47 | BO10: 48 | BP10: 49 | BQ10: 50 | BR10: 51 | BS10: 52 | BT10: 53 | BU10: 54 | BV10: 55 | BW10: 56 | BX10: 57 | BY10: 58 | BZ10: 59 | CA10: 60 | CB10: 61 | CC10: 62 | CD10: 63 | CE10: 64 | CF10: 65 | CG10: 66 | CH10: 67 | CI10: 68 | CJ10: 69 | CK10: 70 | CL10: 71 | CM10: 72 | CN10: 73 | CO10: 74 | CP10: 75 | CQ10: 76 | CR10: 77 | CS10: 78 | CT10: 79 | CU10: 80 | CV10: 81 | CW10: 82 | CX10: 83 | CY10: 84 | CZ10: 85 | DA10: 86 | DB10: 87 | DC10: 88 | DD10: 89 | DE10: 90 | DF10: 91 | DG10: 92 | DH10: 93 | DI10: 94 | DJ10: 95 | DK10: 96 | DL10: 97 | DM10: 98 | DN10: 99 | DO10: 100 | DP10: 101 | DQ10: 102 | DR10: 103 | DS10: 100 | DT10: 101 | DU10: 102 | DV10: 104 | DW10: 105 | DX10: 106 | DY10: 100 | DZ10: 101 | EA10: 102 | EE10: 101 | EF10: 102 | EG10: 103 | EH10: 104 | EL10: 105 | EM10: 106 | EN10: 107 | EO10: 25 | EP10: 105 | EQ10: 106 | ER10: 107 | ES10: 105 | ET10: 106 | EU10: 107 | EV10: 26 | EW10: 27 | EX10: 28 | EY10: 26 | EZ10: 27 | FA10: 28 | FB10: 26 | FC10: 27 | FD10: 28 | FE10: 26 | FF10: 27 | FG10: 28 | FH10: 26 | FI10: 27 | FJ10: 28 | FK10: 26 | FL10: 27 | FM10: 28 | FN10: 26 | FO10: 27 | FP10: 28 | FQ10: 25 | FR10: 26 | FS10: 27 | FT10: 28 | FU10: 26 | FV10: 27 | FW10: 28 | GA10: 29 | GB10: 30 | GC10: 31 | GD10: 29 | GE10: 30 | GF10: 31 | GG10: 29 | GH10: 30 | GI10: 31 | GJ10: 29 | GK10: 30 | GL10: 31 | GM10: 29 | GN10: 30 | GO10: 31 | GP10: 29 | GQ10: 30 | GR10: 31 | GS10: 29 | GT10: 30 | GU10: 31 | GV10: 29 | GW10: 30 | GX10: 31 | GY10: 29 | GZ10: 30 | HA10: 31 | HB10: 29 | HC10: 30 | HD10: 31 | HE10: 29 | HF10: 30 | HG10: 31 | HH10: 29 | HI10: 30 | HJ10: 31 | HK10: 29 | HL10: 30 | HM10: 31 | HN10: 29 | HO10: 30 | HP10: 31 | HQ10: 32 | HT10: 33 | HU10: 34 | HV10: 35 | HW10: 36 | HX10: 37 | HY10: 38 | HZ10: 39 | IA10: 40 | IB10: 41 | IC10: 42 | ID10: 43 | IE10: 44 | IF10: 45 | IG10: 46 | IH10: 47 | II10: 48 | IJ10: 49 | IK10: 50 | IL10: 51 | IM10: 68 | IN10: 69 | IO10: 70 | IP10: 71 | IQ10: 72 | IR10: 73 | IS10: 74 | IT10: 75 | IU10: 76 | IV10: 77 | IW10: 78 | IX10: 79
A11: 10 | B11: 1.3 | C11: СГ00.09.0.00.0 | D11: Жилой комплекс "Солнечный город" ПК-9 | E11: =E12 -> 0 | K11: =SUM(K12:K12) -> 0 | M11: =SUM(M12:M12) -> 0 | N11: =SUM(N12:N12) -> 0 | Q11: =SUM(Q12:Q12) -> 0 | U11: =SUM(U12:U12) -> 0 | V11: 0 | Y11: =SUM(II11,#REF!,#REF!,#REF!,#REF!,#REF!,#REF!,#REF!) ->  | Z11: =V11-Y11 ->  | BY11: 2022-01-05 | BZ11: 2022-12-05 | CA11: 2022-01-05 | CB11: 2022-12-05 | CC11: 2022-01-05 | CD11: 2022-12-05 | CE11: 2022-01-05 | CF11: 2022-12-05 | CG11: 2022-01-05 | CH11: 2022-12-05 | CI11: 2022-01-05 | CJ11: 2022-12-05 | CK11: 2022-01-05 | CL11: 2022-12-05 | CM11: 2022-01-05 | CN11: 2022-12-05 | CO11: 2022-01-05 | CP11: 2022-12-05 | CQ11: =MIN(CQ12) -> 2021-12-01 | CR11: =MAX(CR12) -> 2022-12-30 | CS11: =MIN(CS12) -> 2021-12-01 | CT11: =MAX(CT12) -> 2022-12-30 | CU11: =MIN(CU12) -> 2021-12-01 | CV11: =MAX(CV12) -> 2022-12-30 | CW11: =MIN(CW12) -> 2021-12-01 | CX11: =MAX(CX12) -> 2022-12-30 | CY11: =MIN(CY12) -> 2021-12-01 | CZ11: =MAX(CZ12) -> 2022-12-30 | DA11: =MIN(DA12) -> 2021-12-01 | DB11: =MAX(DB12) -> 2022-12-30 | DC11: =MIN(DC12) -> 2021-12-01 | DD11: =MAX(DD12) -> 2022-12-30 | DE11: =MIN(DE12) -> 2021-12-01 | DF11: =MAX(DF12) -> 2022-12-30 | DG11: =MIN(DG12) -> 2021-12-01 | DH11: =MAX(DH12) -> 2022-12-30 | DI11: =MIN(DI12) -> 2021-12-01 | DJ11: =MAX(DJ12) -> 2022-12-30 | DK11: =MIN(DK12) -> 2021-12-01 | DL11: =MAX(DL12) -> 2022-12-30 | DM11: =MIN(DM12) -> 2021-12-01 | DN11: =MIN(DN12) -> 2021-12-01 | DO11: =MAX(DO12) -> 2022-12-30 | DP11: =MIN(DP12) -> 2021-12-01 | DQ11: =MIN(DQ12) -> 2021-12-01 | DR11: =MAX(DR12) -> 2022-12-30 | DS11: =MIN(DS12) -> 2021-12-01 | DT11: =MIN(DT12) -> 2021-12-01 | DU11: =MAX(DU12) -> 2022-12-30 | DV11: =MIN(DV12) -> 2021-12-01 | DW11: =MIN(DW12) -> 2021-12-01 | DX11: =MAX(DX12) -> 2022-12-30 | DY11: =MIN(DY12) -> 2021-12-01 | DZ11: =MIN(DZ12) -> 2021-12-01 | EA11: =MAX(EA12) -> 2022-12-30 | EB11: 2021-12-01 | EC11: 2021-12-01 | ED11: 2022-12-30 | EI11: 2021-12-01 | EJ11: 2021-12-01 | EK11: 2022-12-30 | EL11: =MIN(EL12) -> 2021-12-01 | EM11: =MIN(EM12) -> 2021-12-01 | EN11: =MAX(EN12) -> 2022-12-30 | EP11: =MIN(EP12) -> 2021-12-01 | EQ11: =MIN(EQ12) -> 2021-12-01 | ER11: =MAX(ER12) -> 2022-12-30 | ES11: =MIN(ES12) -> 2021-12-01 | ET11: =MIN(ET12) -> 2021-12-01 | EU11: =MAX(EU12) -> 2022-12-30 | EV11: =MIN(EV12) -> 2021-12-01 | EW11: =MIN(EW12) -> 2021-12-01 | EX11: =MAX(EX12) -> 2022-12-30 | EY11: 2021-12-01 | EZ11: 2021-12-01 | FA11: 2022-12-30 | FB11: =MIN(FB12) -> 2021-12-01 | FC11: =MIN(FC12) -> 2021-12-01 | FD11: =MAX(FD12) -> 2022-12-30 | FE11: =MIN(FE12) -> 2021-12-01 | FF11: =MIN(FF12) -> 2021-12-01 | FG11: =MAX(FG12) -> 2022-12-30 | FH11: 2021-12-01 | FI11: 2021-12-01 | FJ11: 2022-12-30 | FK11: =MIN(FK12) -> 2021-12-01 | FL11: =MIN(FL12) -> 2021-12-01 | FM11: =MAX(FM12) -> 2022-12-30 | FN11: =MIN(FN12) -> 2021-12-01 | FO11: =MIN(FO12) -> 2021-12-01 | FP11: =MAX(FP12) -> 2022-12-30 | FQ11: 2021-12-01 | FR11: 2021-12-01 | FS11: 2022-12-30 | FU11: =MIN(FU12) -> 2021-12-01 | FV11: =MIN(FV12) -> 2021-12-01 | FW11: =MAX(FW12) -> 2022-12-30 | FX11: 2021-12-01 | FY11: 2021-12-01 | FZ11: 2022-12-30 | GA11: =MIN(GA12) -> 2021-12-01 | GB11: =MIN(GB12) -> 2021-12-01 | GC11: =MAX(GC12) -> 2022-12-30 | GD11: =MIN(GD12) -> 2021-12-01 | GE11: =MIN(GE12) -> 2021-12-01 | GF11: =MAX(GF12) -> 2022-12-30 | GG11: =MIN(GG12) -> 2021-12-01 | GH11: =MIN(GH12) -> 2021-12-01 | GI11: =MAX(GI12) -> 2022-12-30 | GJ11: =MIN(GJ12) -> 2021-12-01 | GK11: =MIN(GK12) -> 2021-12-01 | GL11: =MAX(GL12) -> 2022-12-30 | GM11: =MIN(GM12) -> 2021-12-01 | GN11: =MIN(GN12) -> 2021-12-01 | GO11: =MAX(GO12) -> 2022-12-30 | GP11: =MIN(GP12) -> 2021-12-01 | GQ11: =MIN(GQ12) -> 2021-12-01 | GR11: =MAX(GR12) -> 2022-12-30 | GS11: =MIN(GS12) -> 2021-12-01 | GT11: =MIN(GT12) -> 2021-12-01 | GU11: =MAX(GU12) -> 2022-12-30 | GV11: =MIN(GV12) -> 2021-12-01 | GW11: =MIN(GW12) -> 2021-12-01 | GX11: =MAX(GX12) -> 2022-12-30 | GY11: =MIN(GY12) -> 2021-12-01 | GZ11: =MIN(GZ12) -> 2021-12-01 | HA11: =MAX(HA12) -> 2022-12-30 | HB11: =MIN(HB12) -> 2021-12-01 | HC11: =MIN(HC12) -> 2021-12-01 | HD11: =MAX(HD12) -> 2022-12-30 | HE11: =MIN(HE12) -> 2021-12-01 | HF11: =MIN(HF12) -> 2021-12-01 | HG11: =MAX(HG12) -> 2022-12-30 | HH11: =MIN(HH12) -> 2021-12-01 | HI11: =MIN(HI12) -> 2021-12-01 | HJ11: =MAX(HJ12) -> 2022-12-30 | HK11: =MIN(HK12) -> 2021-12-01 | HL11: =MIN(HL12) -> 2021-12-01 | HM11: =MAX(HM12) -> 2022-12-30 | HN11: =MIN(HN12) -> 2021-12-01 | HO11: =MIN(HO12) -> 2021-12-01 | HP11: =MAX(HP12) -> 2022-12-30 | HW11: =SUM(HW12:HW12) -> 0 | HX11: 0 | HY11: 0 | HZ11: 0 | IA11: 0 | IB11: 0 | IC11: 0 | ID11: 0 | IE11: 0 | IF11: 0 | IG11: 0 | IH11: 0 | II11: 0 | IJ11: 0 | IK11: 0 | IL11: 0 | IM11: =SUM(IM12:IM12) -> 0 | IN11: 0 | IO11: 0 | IP11: 0 | IQ11: 0 | IR11: 0 | IS11: 0 | IT11: 0 | IU11: 0 | IV11: 0 | IW11: 0 | IX11: 0
A12: 11 | B12: 1.3.1 | C12: СГ00.09.2.00.0 | D12: Жилой комплекс "Солнечный город" ПК-9 Адм здание 17-3 | J12: =L12 -> 2100 | L12: 2,100 | O12: 1 | P12: 3 | R12: Не опред. | Y12: =SUM(II12,#REF!,#REF!,#REF!,#REF!,#REF!,#REF!,#REF!) ->  | AE12: Прединвест | BY12: 2022-01-05 | BZ12: 2022-12-05 | CA12: 2022-01-05 | CB12: 2022-12-05 | CC12: 2022-01-05 | CD12: 2022-12-05 | CE12: 2022-01-05 | CF12: 2022-12-05 | CG12: 2022-01-05 | CH12: 2022-12-05 | CI12: 2022-01-05 | CJ12: 2022-12-05 | CK12: 2021-12-01 | CL12: 2022-12-05 | CM12: 2022-01-05 | CN12: 2022-12-05 | CO12: 2022-01-05 | CP12: 2022-12-30 | CQ12: 2021-12-01 | CR12: 2022-12-30 | CS12: 2021-12-01 | CT12: 2022-12-30 | CU12: 2021-12-01 | CV12: 2022-12-30 | CW12: 2021-12-01 | CX12: 2022-12-30 | CY12: 2021-12-01 | CZ12: 2022-12-30 | DA12: 2021-12-01 | DB12: 2022-12-30 | DC12: 2021-12-01 | DD12: 2022-12-30 | DE12: 2021-12-01 | DF12: 2022-12-30 | DG12: 2021-12-01 | DH12: 2022-12-30 | DI12: 2021-12-01 | DJ12: 2022-12-30 | DK12: 2021-12-01 | DL12: 2022-12-30 | DM12: 2021-12-01 | DN12: 2021-12-01 | DO12: 2022-12-30 | DP12: 2021-12-01 | DQ12: 2021-12-01 | DR12: 2022-12-30 | DS12: 2021-12-01 | DT12: 2021-12-01 | DU12: 2022-12-30 | DV12: 2021-12-01 | DW12: 2021-12-01 | DX12: 2022-12-30 | DY12: 2021-12-01 | DZ12: 2021-12-01 | EA12: 2022-12-30 | EB12: 2021-12-01 | EC12: 2021-12-01 | ED12: 2022-12-30 | EE12: =(DO12-DN12)/30 -> 13 | EF12: =(DO12-DM12)/30 -> 13 | EG12: - | EH12: - | EI12: 2021-12-01 | EJ12: 2021-12-01 | EK12: 2022-12-30 | EL12: 2021-12-01 | EM12: 2021-12-01 | EN12: 2022-12-30 | EO12: =(EB12-DZ12)/30 -> 0 | EP12: 2021-12-01 | EQ12: 2021-12-01 | ER12: 2022-12-30 | ES12: 2021-12-01 | ET12: 2021-12-01 | EU12: 2022-12-30 | EV12: 2021-12-01 | EW12: 2021-12-01 | EX12: 2022-12-30 | EY12: 2021-12-01 | EZ12: 2021-12-01 | FA12: 2022-12-30 | FB12: 2021-12-01 | FC12: 2021-12-01 | FD12: 2022-12-30 | FE12: 2021-12-01 | FF12: 2021-12-01 | FG12: 2022-12-30 | FH12: 2021-12-01 | FI12: 2021-12-01 | FJ12: 2022-12-30 | FK12: 2021-12-01 | FL12: 2021-12-01 | FM12: 2022-12-30 | FN12: 2021-12-01 | FO12: 2021-12-01 | FP12: 2022-12-30 | FQ12: 2021-12-01 | FR12: 2021-12-01 | FS12: 2022-12-30 | FT12: =(FS12-FR12)/30 -> 13 | FU12: 2021-12-01 | FV12: 2021-12-01 | FW12: 2022-12-30 | FX12: 2021-12-01 | FY12: 2021-12-01 | FZ12: 2022-12-30 | GA12: 2021-12-01 | GB12: 2021-12-01 | GC12: 2022-12-30 | GD12: 2021-12-01 | GE12: 2021-12-01 | GF12: 2022-12-30 | GG12: 2021-12-01 | GH12: 2021-12-01 | GI12: 2022-12-30 | GJ12: 2021-12-01 | GK12: 2021-12-01 | GL12: 2022-12-30 | GM12: 2021-12-01 | GN12: 2021-12-01 | GO12: 2022-12-30 | GP12: 2021-12-01 | GQ12: 2021-12-01 | GR12: 2022-12-30 | GS12: 2021-12-01 | GT12: 2021-12-01 | GU12: 2022-12-30 | GV12: 2021-12-01 | GW12: 2021-12-01 | GX12: 2022-12-30 | GY12: 2021-12-01 | GZ12: 2021-12-01 | HA12: 2022-12-30 | HB12: 2021-12-01 | HC12: 2021-12-01 | HD12: 2022-12-30 | HE12: 2021-12-01 | HF12: 2021-12-01 | HG12: 2022-12-30 | HH12: 2021-12-01 | HI12: 2021-12-01 | HJ12: 2022-12-30 | HK12: 2021-12-01 | HL12: 2021-12-01 | HM12: 2022-12-30 | HN12: 2021-12-01 | HO12: 2021-12-01 | HP12: 2022-12-30 | II12: =SUM(HW12:IH12) -> 0
A13: 30 | B13: 2.3 | C13: СД00.03.0.00.0 | D13: ЖК "Светлая Долина" ПК-3 | E13: =SUM(E14:E18) -> 95,980 | J13: =SUM(J14,J16,J17,J18) -> 45,953 | K13: =SUM(K14:K18) -> 62,209 | L13: =SUM(L14:L18) -> 4,474 | M13: =SUM(M14:M18) -> 0 | N13: =SUM(N14:N18) -> 1,469 | Q13: =SUM(Q14:Q18) -> 5 | U13: =SUM(U14:U18) -> 14,872 | V13: =SUM(V14:V18) -> 11,689 | W13: =SUM(W14:W18) -> 1,075 | Y13: =SUM(II13,#REF!,#REF!,#REF!,#REF!,#REF!,#REF!,#REF!) ->  | Z13: =U13-Y13-AA13 ->  | AF13: 1) Идет процедура получения отклонений. Есть информация, что Нигматзянов отправляет наш проект в прокуратуру, и не будет согласовывать нам отклонения. В срок до 30.11.21г. будет подготовлен новый ПМТ, на котором будут иные красные линии, после чего у нас отпадет необходимость в получении отклонений. Также будет изменен ГПЗУ, следовательно, выдать проект невозможно. 2) Обнаружена проблема с водопонижением (аналогично ПК-17). АБ-1 вносит изменения в проект, принято наиболее экономически целесообразное решение - дополнительная гидроизоляция. В связи с вышесказанным, имеются риски сдвига получения РНС на 1 месяц | BQ13: 2022-06-01 | BR13: 2024-07-30 | BS13: 2022-06-01 | BT13: 2024-07-30 | BU13: 2022-06-01 | BV13: 2024-07-01 | BW13: 2022-06-01 | BX13: 2024-07-01 | BY13: 2021-12-01 | BZ13: 2024-01-01 | CA13: 2021-12-01 | CB13: 2024-08-01 | CC13: 2021-12-01 | CD13: 2024-08-01 | CE13: 2021-12-01 | CF13: 2024-08-01 | CG13: 2021-12-01 | CH13: 2024-08-01 | CI13: 2021-12-01 | CJ13: 2024-08-01 | CK13: 2021-12-01 | CL13: 2024-08-01 | CM13: 2021-12-01 | CN13: 2024-08-01 | CO13: 2021-12-01 | CP13: 2024-08-01 | CQ13: =MIN(CQ14:CQ18) -> 2021-12-01 | CR13: =MAX(CR14:CR18) -> 2024-08-01 | CS13: =MIN(CS14:CS18) -> 2021-12-01 | CT13: =MAX(CT14:CT18) -> 2024-08-01 | CU13: =MIN(CU14:CU18) -> 2021-12-01 | CV13: =MAX(CV14:CV18) -> 2024-08-01 | CW13: =MIN(CW14:CW18) -> 2021-12-01 | CX13: =MAX(CX14:CX18) -> 2024-08-01 | CY13: =MIN(CY14:CY18) -> 2021-12-01 | CZ13: =MAX(CZ14:CZ18) -> 2024-08-01 | DA13: =MIN(DA14:DA18) -> 2021-12-01 | DB13: =MAX(DB14:DB18) -> 2024-08-01 | DC13: =MIN(DC14:DC18) -> 2021-12-01 | DD13: =MAX(DD14:DD18) -> 2024-08-01 | DE13: =MIN(DE14:DE18) -> 2021-12-30 | DF13: =MAX(DF14:DF18) -> 2024-08-01 | DG13: =MIN(DG14:DG18) -> 2021-12-01 | DH13: =MAX(DH14:DH18) -> 2024-08-01 | DI13: =MIN(DI14:DI18) -> 2021-12-30 | DJ13: =MAX(DJ14:DJ18) -> 2024-08-01 | DK13: =MIN(DK14:DK18) -> 2021-12-30 | DL13: =MAX(DL14:DL18) -> 2024-08-01 | DM13: =MIN(DM14:DM18) -> 2021-12-30 | DN13: =MIN(DN14:DN18) -> 2022-01-30 | DO13: =MAX(DO14:DO18) -> 2024-08-01 | DP13: =MIN(DP14:DP18) -> 2021-12-30 | DQ13: =MIN(DQ14:DQ18) -> 2022-01-30 | DR13: =MAX(DR14:DR18) -> 2024-08-01 | DS13: =MIN(DS14:DS18) -> 2021-12-30 | DT13: =MIN(DT14:DT18) -> 2022-01-30 | DU13: =MAX(DU14:DU18) -> 2024-08-01 | DV13: =MIN(DV14:DV18) -> 2021-12-30 | DW13: =MIN(DW14:DW18) -> 2022-01-30 | DX13: =MAX(DX14:DX18) -> 2024-08-01 | DY13: =MIN(DY14:DY18) -> 2022-02-28 | DZ13: =MIN(DZ14,DZ16,DZ17,DZ18) -> 2022-03-14 | EA13: =MAX(EA14:EA18) -> 2024-08-01 | EB13: 2022-03-30 | EC13: 2022-04-13 | ED13: 2024-09-30 | EI13: 2022-03-30 | EJ13: 2022-04-13 | EK13: 2024-09-30 | EL13: =MIN(EL14:EL18) -> 2022-02-28 | EM13: =MIN(EM14,EM16,EM17,EM18) -> 2022-03-14 | EN13: =MAX(EN14:EN18) -> 2024-09-30 | EP13: =MIN(EP14:EP18) -> 2022-03-15 | EQ13: =MIN(EQ14,EQ16,EQ17,EQ18) -> 2022-03-29 | ER13: =MAX(ER14:ER18) -> 2024-09-30 | ES13: =MIN(ES14:ES18) -> 2022-03-15 | ET13: =MIN(ET14,ET16,ET17,ET18) -> 2022-03-29 | EU13: =MAX(EU14:EU18) -> 2024-09-30 | EV13: =MIN(EV14:EV18) -> 2022-03-15 | EW13: =MIN(EW14,EW16,EW17,EW18) -> 2022-03-29 | EX13: =MAX(EX14:EX18) -> 2024-09-30 | EY13: 2022-03-20 | EZ13: 2022-04-03 | FA13: 2024-09-30 | FB13: =MIN(FB14:FB18) -> 2022-03-20 | FC13: =MIN(FC14,FC16,FC17,FC18) -> 2022-04-03 | FD13: =MAX(FD14:FD18) -> 2024-09-30 | FE13: =MIN(FE14:FE18) -> 2022-05-15 | FF13: =MIN(FF14,FF16,FF17,FF18) -> 2022-05-30 | FG13: =MAX(FG14:FG18) -> 2024-09-30 | FH13: 2022-07-30 | FI13: 2022-07-30 | FJ13: 2024-09-30 | FK13: =MIN(FK14:FK18) -> 2022-07-30 | FL13: =MIN(FL14,FL16,FL17,FL18) -> 2022-07-30 | FM13: =MAX(FM14:FM18) -> 2024-09-30 | FN13: =MIN(FN14:FN18) -> 2022-07-30 | FO13: =MIN(FO14,FO16,FO17,FO18) -> 2022-07-30 | FP13: =MAX(FP14:FP18) -> 2024-09-30 | FQ13: 2022-07-30 | FR13: 2022-09-01 | FS13: 2024-11-30 | FU13: =MIN(FU14:FU18) -> 2022-07-30 | FV13: =MIN(FV14,FV16,FV17,FV18) -> 2022-09-01 | FW13: =MAX(FW14:FW18) -> 2024-11-30 | FX13: 2022-07-15 | FY13: 2022-08-29 | FZ13: 2024-11-30 | GA13: =MIN(GA14:GA18) -> 2022-07-15 | GB13: =MIN(GB14,GB16,GB17,GB18) -> 2022-08-29 | GC13: =MAX(GC14:GC18) -> 2024-11-30 | GD13: =MIN(GD14:GD18) -> 2022-07-15 | GE13: =MIN(GE14,GE16,GE17,GE18) -> 2022-08-29 | GF13: =MAX(GF14:GF18) -> 2024-11-30 | GG13: =MIN(GG14:GG18) -> 2022-08-15 | GH13: =MIN(GH14,GH16,GH17,GH18) -> 2022-08-29 | GI13: =MAX(GI14:GI18) -> 2024-11-30 | GJ13: =MIN(GJ14:GJ18) -> 2022-08-15 | GK13: =MIN(GK14,GK16,GK17,GK18) -> 2022-08-29 | GL13: =MAX(GL14:GL18) -> 2024-11-30 | GM13: =MIN(GM14:GM18) -> 2022-08-31 | GN13: =MIN(GN14,GN16,GN17,GN18) -> 2022-08-31 | GO13: =MAX(GO14:GO18) -> 2024-11-30 | GP13: =MIN(GP14:GP18) -> 2022-09-30 | GQ13: =MIN(GQ14,GQ16,GQ17,GQ18) -> 2022-09-30 | GR13: =MAX(GR14:GR18) -> 2024-11-30 | GS13: =MIN(GS14:GS18) -> 2022-09-30 | GT13: =MIN(GT14,GT16,GT17,GT18) -> 2022-09-30 | GU13: =MAX(GU14:GU18) -> 2024-11-30 | GV13: =MIN(GV14:GV18) -> 2022-09-30 | GW13: =MIN(GW14,GW16,GW17,GW18) -> 2022-09-30 | GX13: =MAX(GX14:GX18) -> 2024-11-30 | GY13: =MIN(GY14:GY18) -> 2022-09-30 | GZ13: =MIN(GZ14,GZ16,GZ17,GZ18) -> 2022-09-30 | HA13: =MAX(HA14:HA18) -> 2024-11-30 | HB13: =MIN(HB14:HB18) -> 2022-10-24 | HC13: =MIN(HC14,HC16,HC17,HC18) -> 2022-10-24 | HD13: =MAX(HD14:HD18) -> 2024-11-30 | HE13: =MIN(HE14:HE18) -> 2022-10-24 | HF13: =MIN(HF14,HF16,HF17,HF18) -> 2022-10-24 | HG13: =MAX(HG14:HG18) -> 2024-11-30 | HH13: =MIN(HH14:HH18) -> 2022-10-27 | HI13: =MIN(HI14,HI16,HI17,HI18) -> 2022-10-27 | HJ13: =MAX(HJ14:HJ18) -> 2024-11-30 | HK13: =MIN(HK14:HK18) -> 2022-11-10 | HL13: =MIN(HL14,HL16,HL17,HL18) -> 2022-11-10 | HM13: =MAX(HM14:HM18) -> 2024-11-30 | HN13: =MIN(HN14:HN18) -> 2022-11-10 | HO13: =MIN(HO14,HO16,HO17,HO18) -> 2022-11-10 | HP13: =MAX(HP14:HP18) -> 2024-11-30 | HV13: =MAX(HV14:HV18) -> 2025-06-30 | HW13: =SUM(HW14,HW16,HW17,HW18) -> 0 | HX13: 0 | HY13: 0 | HZ13: 0 | IA13: 0 | IB13: 0 | IC13: 0 | ID13: 0 | IE13: 0 | IF13: 0 | IG13: 0 | IH13: 0 | II13: 0 | IL13: 45,953
A14: 31 | B14: 2.3.1 | C14: СД00.03.1.03.1 | D14: ЖК "Светлая Долина" ПК-3 ж/д 3-1 | E14: 30,509 | F14: Утеплитель минераловатный t=150 мм | G14: λ=0,038-0,041 Вт/м*К t=150мм p=131-159кг/м3 Горючесть НГ Каменная вата | H14: м3 | I14: 2,577 | J14: =K14+L14 -> 20,730 | K14: 19,263 | L14: 1,467 | N14: 480 | O14: 2 | P14: 26 (24) | Q14: 1 | R14: Монолит | T14: Перепривязка | Y14: =SUM(II14,#REF!,#REF!,#REF!,#REF!,#REF!,#REF!,#REF!) ->  | AE14: Прединвест | AF14: Первоначально в ПП закладывался срок строительства для панельного дома - 2 года. Далее было принято решение о возведении монолитного дома, срок строительства которого 2,5 года. | AG14: 2020-11-25 | AH14: 2020-12-25 | AI14: 2021-04-15 | AJ14: 2021-04-30 | AK14: 2021-09-30 | AL14: 2021-10-31 | AM14: 2022-01-31 | AP14: 2024-04-30 | AQ14: 2024-10-31 | AR14: 2024-12-30 | AS14: 2020-11-25 | AT14: 2020-12-25 | AU14: 2021-04-15 | AV14: 2021-07-05 | AW14: 2021-11-01 | AX14: 2022-01-31 | AY14: 2022-01-31 | AZ14: нет | BA14: нет | BB14: 2024-07-01 | BC14: 2024-10-31 | BD14: 2024-12-30 | BE14: 2020-11-25 | BF14: 2020-12-25 | BG14: 2021-04-15 | BH14: 2021-07-05 | BI14: 2021-11-30 | BJ14: 2022-03-09 | BK14: 2022-03-20 | BL14: нет | BM14: нет | BN14: 2024-08-30 | BO14: 2024-10-30 | BP14: 2025-06-30 | BQ14: 2022-06-01 | BR14: 2024-07-30 | BS14: 2022-06-01 | BT14: 2024-07-01 | BU14: 2022-06-01 | BV14: 2024-07-01 | BW14: 2022-06-01 | BX14: 2024-07-01 | BY14: 2021-12-30 | BZ14: 2024-01-01 | CA14: 2021-12-01 | CB14: 2024-08-01 | CC14: 2021-12-01 | CD14: 2024-08-01 | CE14: 2021-12-01 | CF14: 2024-08-01 | CG14: 2021-12-01 | CH14: 2024-08-01 | CI14: 2021-12-01 | CJ14: 2024-08-01 | CK14: 2021-12-01 | CL14: 2024-08-01 | CM14: 2021-12-01 | CN14: 2024-08-01 | CO14: 2021-12-01 | CP14: 2024-08-01 | CQ14: 2021-12-01 | CR14: 2024-08-01 | CS14: 2021-12-01 | CT14: 2024-08-01 | CU14: 2021-12-01 | CV14: 2024-08-01 | CW14: 2021-12-01 | CX14: 2024-08-01 | CY14: 2021-12-01 | CZ14: 2024-08-01 | DA14: 2021-12-01 | DB14: 2024-08-01 | DC14: 2021-12-01 | DD14: 2024-08-01 | DE14: 2021-12-30 | DF14: 2024-08-01 | DG14: 2021-12-01 | DH14: 2024-08-01 | DI14: 2021-12-30 | DJ14: 2024-08-01 | DK14: 2021-12-30 | DL14: 2024-08-01 | DM14: 2021-12-30 | DN14: 2022-01-30 | DO14: 2024-08-01 | DP14: 2021-12-30 | DQ14: 2022-01-30 | DR14: 2024-08-01 | DS14: 2021-12-30 | DT14: 2022-01-30 | DU14: 2024-08-01 | DV14: 2021-12-30 | DW14: 2022-01-30 | DX14: 2024-08-01 | DY14: 2022-02-28 | DZ14: =DY14+14 -> 2022-03-14 | EA14: 2024-08-01 | EB14: 2022-03-30 | EC14: 2022-04-13 | ED14: 2024-09-30 | EE14: =(DO14-DN14)/30 -> 30 | EF14: =(DO14-DM14)/30 -> 32 | EG14: 2020-12-25 | EH14: 2021-07-05 | EI14: 2022-03-30 | EJ14: 2022-04-13 | EK14: 2024-09-30 | EL14: 2022-02-28 | EM14: =EL14+14 -> 2022-03-14 | EN14: 2024-09-30 | EO14: =(#REF!-#REF!)/30 ->  | EP14: 2022-03-15 | EQ14: =EP14+14 -> 2022-03-29 | ER14: 2024-09-30 | ES14: 2022-03-15 | ET14: =ES14+14 -> 2022-03-29 | EU14: 2024-09-30 | EV14: 2022-03-15 | EW14: =EV14+14 -> 2022-03-29 | EX14: 2024-09-30 | EY14: 2022-03-20 | EZ14: 2022-04-03 | FA14: 2024-09-30 | FB14: 2022-03-20 | FC14: =FB14+14 -> 2022-04-03 | FD14: 2024-09-30 | FE14: 2022-05-15 | FF14: 2022-05-30 | FG14: 2024-09-30 | FH14: 2022-07-30 | FI14: 2022-07-30 | FJ14: 2024-09-30 | FK14: 2022-07-30 | FL14: 2022-07-30 | FM14: 2024-09-30 | FN14: 2022-07-30 | FO14: 2022-07-30 | FP14: 2024-09-30 | FQ14: 2022-07-30 | FR14: 2022-09-01 | FS14: 2024-11-30 | FT14: =(FS14-FR14)/30 -> 27 | FU14: 2022-07-30 | FV14: 2022-09-01 | FW14: 2024-11-30 | FX14: 2022-07-15 | FY14: 2022-08-29 | FZ14: 2024-11-30 | GA14: 2022-07-15 | GB14: 2022-08-29 | GC14: 2024-11-30 | GD14: 2022-07-15 | GE14: 2022-08-29 | GF14: 2024-11-30 | GG14: 2022-08-15 | GH14: 2022-08-29 | GI14: 2024-11-30 | GJ14: 2022-08-15 | GK14: 2022-08-29 | GL14: 2024-11-30 | GM14: 2022-08-31 | GN14: 2022-08-31 | GO14: 2024-11-30 | GP14: 2022-09-30 | GQ14: 2022-09-30 | GR14: 2024-11-30 | GS14: 2022-09-30 | GT14: 2022-09-30 | GU14: 2024-11-30 | GV14: 2022-09-30 | GW14: 2022-09-30 | GX14: 2024-11-30 | GY14: 2022-10-17 | GZ14: 2022-10-17 | HA14: 2024-11-30 | HB14: 2022-11-07 | HC14: 2022-11-07 | HD14: 2024-11-30 | HE14: 2022-11-07 | HF14: 2022-11-07 | HG14: 2024-11-30 | HH14: 2022-11-07 | HI14: 2022-11-07 | HJ14: 2024-11-30 | HK14: 2022-12-08 | HL14: 2022-12-08 | HM14: 2024-11-30 | HN14: 2022-12-08 | HO14: 2022-12-08 | HP14: 2024-11-30 | HR14: АБ-1 | HS14: АБ-1 | HT14: Не определен | HV14: 2025-06-30 | HZ14: ● | IC14: ● | IG14: ● | II14: =SUM(HW14:IH14) -> 0 | IJ14: =IF(YEAR(#REF!)=HW$8,$J14,0) ->  | IK14: =IF(AND(YEAR(#REF!)<=HW$8,YEAR(#REF!)>HW$8),$J14,0) ->  | IL14: =J14 -> 20,730
A15: 31 | B15: 2.3.1 | C15: СД00.03.1.03.1 | D15: ЖК "Светлая Долина" ПК-3 ж/д 3-1 | E15: 30,509 | F15: Утеплитель минераловатный t=50мм | G15: λ=0,038-0,041 Вт/м*К t=50мм p=131-159кг/м3 Горючесть НГ Каменная вата | H15: м3 | I15: 448 | J15: =K15+L15 -> 20,730 | K15: 19,263 | L15: 1,467 | N15: 480 | O15: 2 | P15: 26 (24) | Q15: 1 | R15: Монолит | T15: Перепривязка | Y15: =SUM(II15,#REF!,#REF!,#REF!,#REF!,#REF!,#REF!,#REF!) ->  | Z15: =U15-Y15-AA15 ->  | AE15: Прединвест | AF15: Первоначально в ПП закладывался срок строительства для панельного дома - 2 года. Далее было принято решение о возведении монолитного дома, срок строительства которого 2,5 года. | AG15: 2020-11-25 | AH15: 2020-12-25 | AI15: 2021-04-15 | AJ15: 2021-04-30 | AK15: 2021-09-30 | AL15: 2021-10-31 | AM15: 2022-01-31 | AP15: 2024-04-30 | AQ15: 2024-10-31 | AR15: 2024-12-30 | AS15: 2020-11-25 | AT15: 2020-12-25 | AU15: 2021-04-15 | AV15: 2021-07-05 | AW15: 2021-11-01 | AX15: 2022-01-31 | AY15: 2022-01-31 | AZ15: нет | BA15: нет | BB15: 2024-07-01 | BC15: 2024-10-31 | BD15: 2024-12-30 | BE15: 2020-11-25 | BF15: 2020-12-25 | BG15: 2021-04-15 | BH15: 2021-07-05 | BI15: 2021-11-30 | BJ15: 2022-03-09 | BK15: 2022-03-20 | BL15: нет | BM15: нет | BN15: 2024-08-30 | BO15: 2024-10-30 | BP15: 2025-06-30 | BQ15: 2022-06-01 | BR15: 2024-07-30 | BS15: 2022-06-01 | BT15: 2024-07-01 | BU15: 2022-06-01 | BV15: 2024-07-01 | BW15: 2022-06-01 | BX15: 2024-07-01 | BY15: 2021-12-30 | BZ15: 2024-01-01 | CA15: 2021-12-01 | CB15: 2024-08-01 | CC15: 2021-12-01 | CD15: 2024-08-01 | CE15: 2021-12-01 | CF15: 2024-08-01 | CG15: 2021-12-01 | CH15: 2024-08-01 | CI15: 2021-12-01 | CJ15: 2024-08-01 | CK15: 2021-12-01 | CL15: 2024-08-01 | CM15: 2021-12-01 | CN15: 2024-08-01 | CO15: 2021-12-01 | CP15: 2024-08-01 | CQ15: 2021-12-01 | CR15: 2024-08-01 | CS15: 2021-12-01 | CT15: 2024-08-01 | CU15: 2021-12-01 | CV15: 2024-08-01 | CW15: 2021-12-01 | CX15: 2024-08-01 | CY15: 2021-12-01 | CZ15: 2024-08-01 | DA15: 2021-12-01 | DB15: 2024-08-01 | DC15: 2021-12-01 | DD15: 2024-08-01 | DE15: 2021-12-30 | DF15: 2024-08-01 | DG15: 2021-12-01 | DH15: 2024-08-01 | DI15: 2021-12-30 | DJ15: 2024-08-01 | DK15: 2021-12-30 | DL15: 2024-08-01 | DM15: 2021-12-30 | DN15: 2022-01-30 | DO15: 2024-08-01 | DP15: 2021-12-30 | DQ15: 2022-01-30 | DR15: 2024-08-01 | DS15: 2021-12-30 | DT15: 2022-01-30 | DU15: 2024-08-01 | DV15: 2021-12-30 | DW15: 2022-01-30 | DX15: 2024-08-01 | DY15: 2022-02-28 | DZ15: =DY15+14 -> 2022-03-14 | EA15: 2024-08-01 | EB15: 2022-03-30 | EC15: 2022-04-13 | ED15: 2024-09-30 | EE15: =(DO15-DN15)/30 -> 30 | EF15: =(DO15-DM15)/30 -> 32 | EG15: 2020-12-25 | EH15: 2021-07-05 | EI15: 2022-03-30 | EJ15: 2022-04-13 | EK15: 2024-09-30 | EL15: 2022-02-28 | EM15: =EL15+14 -> 2022-03-14 | EN15: 2024-09-30 | EO15: =(#REF!-#REF!)/30 ->  | EP15: 2022-03-15 | EQ15: =EP15+14 -> 2022-03-29 | ER15: 2024-09-30 | ES15: 2022-03-15 | ET15: =ES15+14 -> 2022-03-29 | EU15: 2024-09-30 | EV15: 2022-03-15 | EW15: =EV15+14 -> 2022-03-29 | EX15: 2024-09-30 | EY15: 2022-03-20 | EZ15: 2022-04-03 | FA15: 2024-09-30 | FB15: 2022-03-20 | FC15: =FB15+14 -> 2022-04-03 | FD15: 2024-09-30 | FE15: 2022-05-15 | FF15: 2022-05-30 | FG15: 2024-09-30 | FH15: 2022-07-30 | FI15: 2022-07-30 | FJ15: 2024-09-30 | FK15: 2022-07-30 | FL15: 2022-07-30 | FM15: 2024-09-30 | FN15: 2022-07-30 | FO15: 2022-07-30 | FP15: 2024-09-30 | FQ15: 2022-07-30 | FR15: 2022-09-01 | FS15: 2024-11-30 | FT15: =(FS15-FR15)/30 -> 27 | FU15: 2022-07-30 | FV15: 2022-09-01 | FW15: 2024-11-30 | FX15: 2022-07-15 | FY15: 2022-08-29 | FZ15: 2024-11-30 | GA15: 2022-07-15 | GB15: 2022-08-29 | GC15: 2024-11-30 | GD15: 2022-07-15 | GE15: 2022-08-29 | GF15: 2024-11-30 | GG15: 2022-08-15 | GH15: 2022-08-29 | GI15: 2024-11-30 | GJ15: 2022-08-15 | GK15: 2022-08-29 | GL15: 2024-11-30 | GM15: 2022-08-31 | GN15: 2022-08-31 | GO15: 2024-11-30 | GP15: 2022-09-30 | GQ15: 2022-09-30 | GR15: 2024-11-30 | GS15: 2022-09-30 | GT15: 2022-09-30 | GU15: 2024-11-30 | GV15: 2022-09-30 | GW15: 2022-09-30 | GX15: 2024-11-30 | GY15: 2022-10-17 | GZ15: 2022-10-17 | HA15: 2024-11-30 | HB15: 2022-11-07 | HC15: 2022-11-07 | HD15: 2024-11-30 | HE15: 2022-11-07 | HF15: 2022-11-07 | HG15: 2024-11-30 | HH15: 2022-11-07 | HI15: 2022-11-07 | HJ15: 2024-11-30 | HK15: 2022-12-08 | HL15: 2022-12-08 | HM15: 2024-11-30 | HN15: 2022-12-08 | HO15: 2022-12-08 | HP15: 2024-11-30 | HR15: АБ-1 | HS15: АБ-1 | HT15: Не определен | HV15: 2025-06-30 | HZ15: ● | IC15: ● | IG15: ● | II15: =SUM(HW15:IH15) -> 0 | IJ15: =IF(YEAR(#REF!)=HW$8,$J15,0) ->  | IK15: =IF(AND(YEAR(#REF!)<=HW$8,YEAR(#REF!)>HW$8),$J15,0) ->  | IL15: =J15 -> 20,730
A16: 32 | B16: 2.3.2 | C16: СД00.03.1.03.2 | D16: ЖК "Светлая Долина" ПК-3 ж/д 3-2 | E16: 7,460 | F16: Утеплитель минераловатный t=150 мм | G16: λ=0,038-0,041 Вт/м*К t=150мм p=131-159кг/м3 Горючесть НГ Каменная вата | H16: м3 | I16: 561 | J16: =K16+L16 -> 5,286 | K16: 4,887 | L16: 398 | N16: 99 | O16: 2 | P16: 11 (9) | Q16: 1 | R16: КПД, 1 Каркас | S16: Тип 20 | T16: Перепривязка | U16: =J16*0.622 -> 3,288 | V16: =U16*0.786 -> 2,584 | W16: 264 | Y16: =SUM(II16,#REF!,#REF!,#REF!,#REF!,#REF!,#REF!,#REF!) ->  | AE16: Прединвест | AG16: 2020-11-25 | AH16: 2020-12-25 | AI16: 2021-04-15 | AJ16: 2021-04-30 | AK16: 2021-09-30 | AL16: 2021-10-31 | AM16: 2022-01-31 | AP16: 2024-04-30 | AQ16: 2024-10-31 | AR16: 2024-12-30 | AS16: 2020-11-25 | AT16: 2020-12-25 | AU16: 2021-04-15 | AV16: 2021-07-05 | AW16: 2021-11-02 | AX16: 2021-03-31 | AY16: 2022-01-31 | AZ16: 2022-03-31 | BA16: 2022-05-31 | BB16: 2023-11-30 | BC16: 2024-01-31 | BD16: 2024-03-30 | BE16: 2020-11-25 | BF16: 2020-12-25 | BG16: 2021-04-15 | BH16: 2021-07-05 | BI16: 2021-11-30 | BJ16: 2022-04-20 | BK16: 2022-05-30 | BL16: 2022-04-30 | BM16: 2022-06-30 | BN16: 2023-10-30 | BO16: 2023-12-30 | BP16: 2024-06-30 | BQ16: 2022-06-01 | BR16: 2024-06-30 | BS16: 2022-06-01 | BT16: 2024-06-01 | BU16: 2022-06-01 | BV16: 2024-06-01 | BW16: 2022-06-01 | BX16: 2024-07-01 | BY16: 2021-12-30 | BZ16: 2023-12-01 | CA16: 2021-12-02 | CB16: 2023-12-01 | CC16: 2021-12-02 | CD16: 2023-12-01 | CE16: 2021-12-02 | CF16: 2023-12-01 | CG16: 2021-12-02 | CH16: 2023-12-01 | CI16: 2021-12-02 | CJ16: 2023-12-01 | CK16: 2021-12-02 | CL16: 2023-12-01 | CM16: 2021-12-02 | CN16: 2023-12-01 | CO16: 2021-12-02 | CP16: 2023-12-01 | CQ16: 2021-12-02 | CR16: 2023-12-01 | CS16: 2021-12-02 | CT16: 2023-12-01 | CU16: 2021-12-02 | CV16: 2023-12-01 | CW16: 2021-12-02 | CX16: 2023-12-01 | CY16: 2021-12-02 | CZ16: 2023-12-01 | DA16: 2021-12-02 | DB16: 2023-12-01 | DC16: 2021-12-02 | DD16: 2023-12-01 | DE16: 2021-12-30 | DF16: 2023-12-01 | DG16: 2021-12-02 | DH16: 2023-12-01 | DI16: 2021-12-30 | DJ16: 2023-12-01 | DK16: 2021-12-30 | DL16: 2023-12-01 | DM16: 2021-12-30 | DN16: 2022-01-31 | DO16: 2023-12-31 | DP16: 2021-12-30 | DQ16: 2022-01-31 | DR16: 2023-11-30 | DS16: 2021-12-30 | DT16: 2022-01-31 | DU16: 2023-11-30 | DV16: 2021-12-30 | DW16: 2022-01-31 | DX16: 2023-11-30 | DY16: 2022-05-05 | DZ16: =DY16+14 -> 2022-05-19 | EA16: 2023-11-30 | EB16: 2022-05-05 | EC16: 2022-05-19 | ED16: 2023-11-30 | EE16: =(DO16-DN16)/30 -> 23 | EF16: =(DO16-DM16)/30 -> 24 | EG16: 2020-12-25 | EH16: 2021-07-05 | EI16: 2022-04-30 | EJ16: 2022-05-14 | EK16: 2023-11-30 | EL16: 2022-05-15 | EM16: =EL16+14 -> 2022-05-29 | EN16: 2023-11-30 | EO16: =(#REF!-#REF!)/30 ->  | EP16: 2022-05-15 | EQ16: =EP16+14 -> 2022-05-29 | ER16: 2023-11-30 | ES16: 2022-05-15 | ET16: =ES16+14 -> 2022-05-29 | EU16: 2023-11-30 | EV16: 2022-05-15 | EW16: =EV16+14 -> 2022-05-29 | EX16: 2023-11-30 | EY16: 2022-05-15 | EZ16: 2022-05-29 | FA16: 2023-11-30 | FB16: 2022-05-15 | FC16: =FB16+14 -> 2022-05-29 | FD16: 2023-11-30 | FE16: 2022-05-15 | FF16: 2022-05-30 | FG16: 2023-11-30 | FH16: 2022-07-30 | FI16: 2022-07-30 | FJ16: 2023-11-30 | FK16: 2022-07-30 | FL16: 2022-07-30 | FM16: 2023-11-30 | FN16: 2022-07-30 | FO16: 2022-07-30 | FP16: 2023-12-10 | FQ16: 2022-07-30 | FR16: 2022-09-01 | FS16: 2024-11-30 | FT16: =(FS16-FR16)/30 -> 27 | FU16: 2022-07-30 | FV16: 2022-09-01 | FW16: 2024-11-30 | FX16: 2022-08-15 | FY16: 2022-08-29 | FZ16: 2023-12-10 | GA16: 2022-08-15 | GB16: =GA16+14 -> 2022-08-29 | GC16: 2023-12-10 | GD16: 2022-08-15 | GE16: =GD16+14 -> 2022-08-29 | GF16: 2023-12-10 | GG16: 2022-08-15 | GH16: =GG16+14 -> 2022-08-29 | GI16: 2023-12-10 | GJ16: 2022-08-15 | GK16: =GJ16+14 -> 2022-08-29 | GL16: 2023-12-10 | GM16: 2022-08-31 | GN16: 2022-08-31 | GO16: 2023-12-10 | GP16: 2022-09-30 | GQ16: 2022-09-30 | GR16: 2023-12-10 | GS16: 2022-09-30 | GT16: 2022-09-30 | GU16: 2023-12-10 | GV16: 2022-09-30 | GW16: 2022-09-30 | GX16: 2023-12-10 | GY16: 2022-09-30 | GZ16: 2022-09-30 | HA16: 2023-12-10 | HB16: 2022-10-24 | HC16: 2022-10-24 | HD16: 2023-12-10 | HE16: 2022-10-24 | HF16: 2022-10-24 | HG16: 2023-12-10 | HH16: 2022-10-27 | HI16: 2022-10-27 | HJ16: 2023-12-10 | HK16: 2022-11-10 | HL16: 2022-11-10 | HM16: 2023-12-10 | HN16: 2022-11-10 | HO16: 2022-11-10 | HP16: 2023-12-10 | HR16: АБ-1 | HS16: АБ-1 | HT16: АБСт | HV16: 2025-06-30 | HZ16: ● | IC16: ● | IG16: ● | II16: =SUM(HW16:IH16) -> 0 | IJ16: =IF(YEAR(#REF!)=HW$8,$J16,0) ->  | IK16: =IF(AND(YEAR(#REF!)<=HW$8,YEAR(#REF!)>HW$8),$J16,0) ->  | IL16: =J16 -> 5,286
A17: 34 | B17: 2.3.4 | C17: СД00.03.1.03.3 | D17: ЖК "Светлая Долина" ПК-3 ж/д 3-3 | E17: 17,140 | F17: Утеплитель минераловатный t=150 мм | G17: λ=0,038-0,041 Вт/м*К t=150мм p=131-159кг/м3 Горючесть НГ Каменная вата | H17: м3 | I17: 1,318 | J17: =K17+L17 -> 12,418 | K17: 11,715 | L17: 704 | N17: 250 | O17: 2 | P17: 18-20 (16-18) | Q17: 1 | R17: КПД, 1 Каркас | S17: Тип 2.3 | T17: Перепривязка | U17: 7,104 | V17: =U17*0.786 -> 5,584 | W17: 500 | Y17: =SUM(II17,#REF!,#REF!,#REF!,#REF!,#REF!,#REF!,#REF!) ->  | AE17: Прединвест | AG17: 2020-11-25 | AH17: 2020-12-25 | AI17: 2021-04-15 | AJ17: 2021-04-30 | AK17: 2021-09-30 | AL17: 2021-10-31 | AM17: 2022-01-31 | AP17: 2024-04-30 | AQ17: 2024-10-31 | AR17: 2024-12-30 | AS17: 2020-11-25 | AT17: 2020-12-25 | AU17: 2021-04-15 | AV17: 2021-07-05 | AW17: 2021-11-04 | AX17: 2021-03-31 | AY17: 2022-01-31 | AZ17: 2022-05-31 | BA17: 2022-07-31 | BB17: 2023-11-30 | BC17: 2024-01-31 | BD17: 2024-03-30 | BE17: 2020-11-25 | BF17: 2020-12-25 | BG17: 2021-04-15 | BH17: 2021-07-05 | BI17: 2021-11-30 | BJ17: 2022-04-20 | BK17: 2022-05-30 | BL17: 2022-04-30 | BM17: 2022-06-30 | BN17: 2023-10-30 | BO17: 2023-12-30 | BP17: 2024-06-30 | BQ17: 2022-06-01 | BR17: 2024-06-30 | BS17: 2022-06-01 | BT17: 2024-06-01 | BU17: 2022-06-01 | BV17: 2024-06-01 | BW17: 2022-06-01 | BX17: 2024-07-01 | BY17: 2021-12-30 | BZ17: 2023-12-02 | CA17: 2021-12-03 | CB17: 2023-12-02 | CC17: 2021-12-03 | CD17: 2023-12-02 | CE17: 2021-12-03 | CF17: 2023-12-02 | CG17: 2021-12-03 | CH17: 2023-12-02 | CI17: 2021-12-03 | CJ17: 2023-12-02 | CK17: 2021-12-03 | CL17: 2023-12-02 | CM17: 2021-12-03 | CN17: 2023-12-02 | CO17: 2021-12-03 | CP17: 2023-12-02 | CQ17: 2021-12-03 | CR17: 2023-12-02 | CS17: 2021-12-03 | CT17: 2023-12-02 | CU17: 2021-12-03 | CV17: 2023-12-02 | CW17: 2021-12-03 | CX17: 2023-12-02 | CY17: 2021-12-03 | CZ17: 2023-12-02 | DA17: 2021-12-03 | DB17: 2023-12-02 | DC17: 2021-12-03 | DD17: 2023-12-02 | DE17: 2021-12-30 | DF17: 2023-12-02 | DG17: 2021-12-03 | DH17: 2023-12-02 | DI17: 2021-12-30 | DJ17: 2023-12-02 | DK17: 2021-12-30 | DL17: 2023-12-02 | DM17: 2021-12-30 | DN17: 2022-02-02 | DO17: 2023-12-31 | DP17: 2021-12-30 | DQ17: 2022-02-02 | DR17: 2023-11-30 | DS17: 2021-12-30 | DT17: 2022-01-31 | DU17: 2023-11-30 | DV17: 2021-12-30 | DW17: 2022-01-31 | DX17: 2023-11-30 | DY17: 2022-05-05 | DZ17: =DY17+14 -> 2022-05-19 | EA17: 2023-11-30 | EB17: 2022-05-05 | EC17: 2022-05-19 | ED17: 2023-11-30 | EE17: =(DO17-DN17)/30 -> 23 | EF17: =(DO17-DM17)/30 -> 24 | EG17: 2020-12-25 | EH17: 2021-07-05 | EI17: 2022-04-30 | EJ17: 2022-05-14 | EK17: 2023-11-30 | EL17: 2022-05-15 | EM17: =EL17+14 -> 2022-05-29 | EN17: 2023-11-30 | EO17: =(#REF!-#REF!)/30 ->  | EP17: 2022-05-15 | EQ17: =EP17+14 -> 2022-05-29 | ER17: 2023-11-30 | ES17: 2022-05-15 | ET17: =ES17+14 -> 2022-05-29 | EU17: 2023-11-30 | EV17: 2022-05-15 | EW17: =EV17+14 -> 2022-05-29 | EX17: 2023-11-30 | EY17: 2022-05-15 | EZ17: 2022-05-29 | FA17: 2023-11-30 | FB17: 2022-05-15 | FC17: =FB17+14 -> 2022-05-29 | FD17: 2023-11-30 | FE17: 2022-05-15 | FF17: 2022-05-30 | FG17: 2023-11-30 | FH17: 2022-07-30 | FI17: 2022-07-30 | FJ17: 2023-11-30 | FK17: 2022-07-30 | FL17: 2022-07-30 | FM17: 2023-11-30 | FN17: 2022-07-30 | FO17: 2022-07-30 | FP17: 2023-12-10 | FQ17: 2022-07-30 | FR17: 2022-09-01 | FS17: 2024-11-30 | FT17: =(FS17-FR17)/30 -> 27 | FU17: 2022-07-30 | FV17: 2022-09-01 | FW17: 2024-11-30 | FX17: 2022-08-15 | FY17: 2022-08-29 | FZ17: 2023-12-10 | GA17: 2022-08-15 | GB17: =GA17+14 -> 2022-08-29 | GC17: 2023-12-10 | GD17: 2022-08-15 | GE17: =GD17+14 -> 2022-08-29 | GF17: 2023-12-10 | GG17: 2022-08-15 | GH17: =GG17+14 -> 2022-08-29 | GI17: 2023-12-10 | GJ17: 2022-08-15 | GK17: =GJ17+14 -> 2022-08-29 | GL17: 2023-12-10 | GM17: 2022-08-31 | GN17: 2022-08-31 | GO17: 2023-12-10 | GP17: 2022-09-30 | GQ17: 2022-09-30 | GR17: 2023-12-10 | GS17: 2022-09-30 | GT17: 2022-09-30 | GU17: 2023-12-10 | GV17: 2022-09-30 | GW17: 2022-09-30 | GX17: 2023-12-10 | GY17: 2022-09-30 | GZ17: 2022-09-30 | HA17: 2023-12-10 | HB17: 2022-10-24 | HC17: 2022-10-24 | HD17: 2023-12-10 | HE17: 2022-10-24 | HF17: 2022-10-24 | HG17: 2023-12-10 | HH17: 2022-10-27 | HI17: 2022-10-27 | HJ17: 2023-12-10 | HK17: 2022-11-10 | HL17: 2022-11-10 | HM17: 2023-12-10 | HN17: 2022-11-10 | HO17: 2022-11-10 | HP17: 2023-12-10 | HR17: АБ-1 | HS17: АБ-1 | HT17: АБСт | HV17: 2025-06-30 | HZ17: ● | IC17: ● | IG17: ● | II17: =SUM(HW17:IH17) -> 0 | IJ17: =IF(YEAR(#REF!)=HW$8,$J17,0) ->  | IK17: =IF(AND(YEAR(#REF!)<=HW$8,YEAR(#REF!)>HW$8),$J17,0) ->  | IL17: =J17 -> 12,418
A18: 36 | B18: 2.3.6 | C18: СД00.03.1.03.4 | D18: ЖК "Светлая Долина" ПК-3 ж/д 3-4 | E18: 10,363 | F18: Утеплитель минераловатный t=150 мм | G18: λ=0,038-0,041 Вт/м*К t=150мм p=131-159кг/м3 Горючесть НГ Каменная вата | H18: м3 | I18: 798 | J18: =K18+L18 -> 7,519 | K18: 7,081 | L18: 438 | N18: 160 | O18: 1 | P18: 18 (16) | Q18: 1 | R18: КПД, 1 Каркас | S18: Тип 2.4 | T18: Перепривязка | U18: 4,480 | V18: =U18*0.786 -> 3,521 | W18: 311 | Y18: =SUM(II18,#REF!,#REF!,#REF!,#REF!,#REF!,#REF!,#REF!) ->  | AE18: Прединвест | AG18: 2020-11-25 | AH18: 2020-12-25 | AI18: 2021-04-15 | AJ18: 2021-04-30 | AK18: 2021-09-30 | AL18: 2021-10-31 | AM18: 2022-01-31 | AP18: 2024-04-30 | AQ18: 2024-10-31 | AR18: 2024-12-30 | AS18: 2020-11-25 | AT18: 2020-12-25 | AU18: 2021-04-15 | AV18: 2021-07-05 | AW18: 2021-11-06 | AX18: 2021-03-31 | AY18: 2022-01-31 | AZ18: 2022-07-31 | BA18: 2022-09-30 | BB18: 2023-11-30 | BC18: 2024-01-31 | BD18: 2024-03-30 | BE18: 2020-11-25 | BF18: 2020-12-25 | BG18: 2021-04-15 | BH18: 2021-07-05 | BI18: 2021-11-30 | BJ18: 2022-04-20 | BK18: 2022-05-30 | BL18: 2022-04-30 | BM18: 2022-07-31 | BN18: 2023-10-30 | BO18: 2023-12-30 | BP18: 2024-06-30 | BQ18: 2022-06-01 | BR18: 2024-06-30 | BS18: 2022-06-01 | BT18: 2024-06-01 | BU18: 2022-06-01 | BV18: 2024-06-01 | BW18: 2022-06-01 | BX18: 2024-07-01 | BY18: 2021-12-30 | BZ18: 2023-12-03 | CA18: 2021-12-04 | CB18: 2023-12-03 | CC18: 2021-12-04 | CD18: 2023-12-03 | CE18: 2021-12-04 | CF18: 2023-12-03 | CG18: 2021-12-04 | CH18: 2023-12-03 | CI18: 2021-12-04 | CJ18: 2023-12-03 | CK18: 2021-12-04 | CL18: 2023-12-03 | CM18: 2021-12-04 | CN18: 2023-12-03 | CO18: 2021-12-04 | CP18: 2023-12-03 | CQ18: 2021-12-04 | CR18: 2023-12-03 | CS18: 2021-12-04 | CT18: 2023-12-03 | CU18: 2021-12-04 | CV18: 2023-12-03 | CW18: 2021-12-04 | CX18: 2023-12-03 | CY18: 2021-12-04 | CZ18: 2023-12-03 | DA18: 2021-12-04 | DB18: 2023-12-03 | DC18: 2021-12-04 | DD18: 2023-12-03 | DE18: 2021-12-30 | DF18: 2023-12-03 | DG18: 2021-12-04 | DH18: 2023-12-03 | DI18: 2021-12-30 | DJ18: 2023-12-03 | DK18: 2021-12-30 | DL18: 2023-12-03 | DM18: 2021-12-30 | DN18: 2022-02-04 | DO18: 2023-12-31 | DP18: 2021-12-30 | DQ18: 2022-02-04 | DR18: 2023-11-30 | DS18: 2021-12-30 | DT18: 2022-01-31 | DU18: 2023-11-30 | DV18: 2021-12-30 | DW18: 2022-01-31 | DX18: 2023-11-30 | DY18: 2022-05-05 | DZ18: =DY18+14 -> 2022-05-19 | EA18: 2023-11-30 | EB18: 2022-05-05 | EC18: 2022-05-19 | ED18: 2023-11-30 | EE18: =(DO18-DN18)/30 -> 23 | EF18: =(DO18-DM18)/30 -> 24 | EG18: 2020-12-25 | EH18: 2021-07-05 | EI18: 2022-04-30 | EJ18: 2022-05-14 | EK18: 2023-11-30 | EL18: 2022-05-15 | EM18: =EL18+14 -> 2022-05-29 | EN18: 2023-11-30 | EO18: =(#REF!-#REF!)/30 ->  | EP18: 2022-05-15 | EQ18: =EP18+14 -> 2022-05-29 | ER18: 2023-11-30 | ES18: 2022-05-15 | ET18: =ES18+14 -> 2022-05-29 | EU18: 2023-11-30 | EV18: 2022-05-15 | EW18: =EV18+14 -> 2022-05-29 | EX18: 2023-11-30 | EY18: 2022-05-15 | EZ18: 2022-05-29 | FA18: 2023-11-30 | FB18: 2022-05-15 | FC18: =FB18+14 -> 2022-05-29 | FD18: 2023-11-30 | FE18: 2022-05-15 | FF18: 2022-05-30 | FG18: 2023-11-30 | FH18: 2022-07-30 | FI18: 2022-07-30 | FJ18: 2023-11-30 | FK18: 2022-07-30 | FL18: 2022-07-30 | FM18: 2023-11-30 | FN18: 2022-07-30 | FO18: 2022-07-30 | FP18: 2023-12-10 | FQ18: 2022-07-30 | FR18: 2022-09-01 | FS18: 2024-11-30 | FT18: =(FS18-FR18)/30 -> 27 | FU18: 2022-07-30 | FV18: 2022-09-01 | FW18: 2024-11-30 | FX18: 2022-08-15 | FY18: 2022-08-29 | FZ18: 2023-12-10 | GA18: 2022-08-15 | GB18: =GA18+14 -> 2022-08-29 | GC18: 2023-12-10 | GD18: 2022-08-15 | GE18: =GD18+14 -> 2022-08-29 | GF18: 2023-12-10 | GG18: 2022-08-15 | GH18: =GG18+14 -> 2022-08-29 | GI18: 2023-12-10 | GJ18: 2022-08-15 | GK18: =GJ18+14 -> 2022-08-29 | GL18: 2023-12-10 | GM18: 2022-08-31 | GN18: 2022-08-31 | GO18: 2023-12-10 | GP18: 2022-09-30 | GQ18: 2022-09-30 | GR18: 2023-12-10 | GS18: 2022-09-30 | GT18: 2022-09-30 | GU18: 2023-12-10 | GV18: 2022-09-30 | GW18: 2022-09-30 | GX18: 2023-12-10 | GY18: 2022-09-30 | GZ18: 2022-09-30 | HA18: 2023-12-10 | HB18: 2022-10-24 | HC18: 2022-10-24 | HD18: 2023-12-10 | HE18: 2022-10-24 | HF18: 2022-10-24 | HG18: 2023-12-10 | HH18: 2022-10-27 | HI18: 2022-10-27 | HJ18: 2023-12-10 | HK18: 2022-11-10 | HL18: 2022-11-10 | HM18: 2023-12-10 | HN18: 2022-11-10 | HO18: 2022-11-10 | HP18: 2023-12-10 | HR18: АБ-1 | HS18: АБ-1 | HT18: АБСт | HV18: 2025-06-30 | HZ18: ● | IC18: ● | IG18: ● | II18: =SUM(HW18:IH18) -> 0 | IJ18: =IF(YEAR(#REF!)=HW$8,$J18,0) ->  | IK18: =IF(AND(YEAR(#REF!)<=HW$8,YEAR(#REF!)>HW$8),$J18,0) ->  | IL18: =J18 -> 7,519
B19: 2.5 | C19: СД00.03.0.00.0 | D19: ЖК "Светлая Долина" ПК-5 | E19: =E20 -> 16,357
B20: 2.5.1 | C20: СД00.05.3.05.1 | D20: ЖК "Светлая долина" ПК-5 паркинг 5-1 на 506 м/м | E20: 16,357 | F20: Утеплитель минераловатный t=100мм | G20: λб= не более 0,041 Вт/м*К, p=32-44кг/м3, горючесть НГ, каменная вата | H20: м3 | I20: 71 | J20: 1,268 | L20: 1,268 | M20: 506 | P20: 9 | R20: Каркас | S20: Тип 5.1 | T20: Перепривязка
B21: 2.5.1 | C21: СД00.05.3.05.1 | D21: ЖК "Светлая долина" ПК-5 паркинг 5-1 на 506 м/м | E21: 16,357 | F21: Утеплитель минераловатный t=50мм | G21: λ= не более 0,039 Вт/м*К p=72-100кг/м3 горючесть НГ, каменная вата | H21: м3 | I21: 35 | J21: 1,268 | L21: 1,268 | M21: 506 | P21: 9 | R21: Каркас | S21: Тип 5.1 | T21: Перепривязка
B22: 2.5.2 | D22: ЖК "Светлая долина" ПК-5 паркинг 5-2 на 506 м/м | F22: Утеплитель минераловатный t=100мм | G22: λб= не более 0,041 Вт/м*К, p=32-44кг/м3, горючесть НГ, каменная вата | H22: м3 | I22: 71 | J22: =L22+K22 -> 1,268 | L22: 1,268 | M22: 506 | P22: 9 | R22: Каркас | S22: Тип 5.1 | T22: Перепривязка
B23: 2.5.2 | D23: ЖК "Светлая долина" ПК-5 паркинг 5-2 на 506 м/м | F23: Утеплитель минераловатный t=50мм | G23: λ= не более 0,039 Вт/м*К p=72-100кг/м3 горючесть НГ, каменная вата | H23: м3 | I23: 35 | J23: =L23+K23 -> 1,268 | L23: 1,268 | M23: 506 | P23: 9 | R23: Каркас | S23: Тип 5.1 | T23: Перепривязка
A24: 71 | B24: 3.4.1 | C24: СНМ1.01.0.00.0 | D24: ЖР "Седьмое Небо" ЖК "Мой ритм" Микрорайон М-1 ПК-1 | E24: =SUM(E25:E27) -> 0 | J24: 87,610 | K24: 76,211 | L24: 11,399 | M24: 630 | N24: 1,651 | Q24: =SUM(Q25:Q27) -> 3 | U24: =SUM(U25:U27) -> 0 | V24: =SUM(V25:V27) -> 0 | Y24: =SUM(II24,#REF!,#REF!,#REF!,#REF!,#REF!,#REF!,#REF!) ->  | Z24: =U24-Y24-AA24 ->  | BQ24: 2020-08-01 | BR24: 2022-08-30 | BS24: 2021-03-01 | BT24: 2023-03-30 | BU24: 2021-08-01 | BV24: 2023-09-30 | BW24: 2021-07-01 | BX24: 2023-12-30 | BY24: 2021-07-01 | BZ24: 2023-12-30 | CA24: 2021-07-01 | CB24: 2023-12-30 | CC24: 2021-07-01 | CD24: 2023-12-30 | CE24: 2021-09-01 | CF24: 2023-12-30 | CG24: 2021-09-01 | CH24: 2023-12-30 | CI24: 2021-09-01 | CJ24: 2023-12-30 | CK24: 2021-10-01 | CL24: 2023-12-30 | CM24: 2021-09-01 | CN24: 2023-12-30 | CO24: 2021-09-01 | CP24: 2023-12-30 | CQ24: =MIN(CQ25:CQ27) -> 2021-11-02 | CR24: =MAX(CR25:CR27) -> 2023-12-30 | CS24: =MIN(CS25:CS27) -> 2021-12-01 | CT24: =MAX(CT25:CT27) -> 2024-09-30 | CU24: =MIN(CU25:CU27) -> 2021-12-01 | CV24: =MAX(CV25:CV27) -> 2024-09-30 | CW24: =MIN(CW25:CW27) -> 2021-12-01 | CX24: =MAX(CX25:CX27) -> 2024-09-30 | CY24: =MIN(CY25:CY27) -> 2022-04-25 | CZ24: =MAX(CZ25:CZ27) -> 2025-04-05 | DA24: =MIN(DA25:DA27) -> 2022-05-21 | DB24: =MAX(DB25:DB27) -> 2025-04-05 | DC24: =MIN(DC25:DC27) -> 2022-05-21 | DD24: =MAX(DD25:DD27) -> 2025-04-05 | DE24: =MIN(DE25:DE27) -> 2022-05-21 | DF24: =MAX(DF25:DF27) -> 2025-04-05 | DG24: =MIN(DG25:DG27) -> 2022-05-21 | DH24: =MAX(DH25:DH27) -> 2025-04-05 | DI24: =MIN(DI25:DI27) -> 2022-05-21 | DJ24: =MAX(DJ25:DJ27) -> 2025-04-05 | DK24: =MIN(DK25:DK27) -> 2022-05-21 | DL24: =MAX(DL25:DL27) -> 2025-04-05 | DM24: =MIN(DM25:DM27) -> 2022-05-21 | DN24: =MIN(DN25:DN27) -> 2022-06-04 | DO24: =MAX(DO25:DO27) -> 2025-04-05 | DP24: =MIN(DP25:DP27) -> 2022-05-21 | DQ24: =MIN(DQ25:DQ27) -> 2022-06-04 | DR24: =MAX(DR25:DR27) -> 2025-10-30 | DS24: =MIN(DS25:DS27) -> 2022-05-21 | DT24: =MIN(DT25:DT27) -> 2022-06-04 | DU24: =MAX(DU25:DU27) -> 2025-10-30 | DV24: =MIN(DV25:DV27) -> 2022-05-21 | DW24: =MIN(DW25:DW27) -> 2022-06-04 | DX24: =MAX(DX25:DX27) -> 2025-10-30 | DY24: =MIN(DY25:DY27) -> 2022-05-21 | DZ24: =MIN(DZ25:DZ27) -> 2022-06-04 | EA24: =MAX(EA25:EA27) -> 2024-11-30 | EB24: 2022-05-21 | EC24: 2022-06-04 | ED24: 2024-11-30 | EI24: 2022-05-21 | EJ24: 2022-06-04 | EK24: 2024-11-30 | EL24: =MIN(EL25:EL27) -> 2022-06-10 | EM24: =MIN(EM25:EM27) -> 2022-06-24 | EN24: =MAX(EN25:EN27) -> 2024-11-30 | EP24: =MIN(EP25:EP27) -> 2022-06-10 | EQ24: =MIN(EQ25:EQ27) -> 2022-06-24 | ER24: =MAX(ER25:ER27) -> 2025-08-30 | ES24: =MIN(ES25:ES27) -> 2022-06-10 | ET24: =MIN(ET25:ET27) -> 2022-06-24 | EU24: =MAX(EU25:EU27) -> 2025-08-30 | EV24: =MIN(EV25:EV27) -> 2022-06-10 | EW24: =MIN(EW25:EW27) -> 2022-06-24 | EX24: =MAX(EX25:EX27) -> 2025-08-30 | EY24: 2022-06-10 | EZ24: 2022-06-24 | FA24: 2025-08-30 | FB24: =MIN(FB25:FB27) -> 2022-08-26 | FC24: =MIN(FC25:FC27) -> 2022-09-09 | FD24: =MAX(FD25:FD27) -> 2025-11-30 | FE24: =MIN(FE25:FE27) -> 2022-08-26 | FF24: =MIN(FF25:FF27) -> 2022-09-15 | FG24: =MAX(FG25:FG27) -> 2025-11-30 | FH24: 2022-08-26 | FI24: 2022-09-15 | FJ24: 2025-11-30 | FK24: =MIN(FK25:FK27) -> 2022-08-26 | FL24: =MIN(FL25:FL27) -> 2022-09-15 | FM24: =MAX(FM25:FM27) -> 2025-11-30 | FN24: =MIN(FN25:FN27) -> 2022-09-15 | FO24: =MIN(FO25:FO27) -> 2022-09-29 | FP24: =MAX(FP25:FP27) -> 2025-11-30 | FQ24: 2022-09-15 | FR24: 2022-11-01 | FS24: 2025-11-01 | FU24: =MIN(FU25:FU27) -> 2022-09-15 | FV24: =MIN(FV25:FV27) -> 2022-11-01 | FW24: =MAX(FW25:FW27) -> 2025-11-30 | FX24: 2022-09-15 | FY24: 2022-11-01 | FZ24: 2025-11-30 | GA24: =MIN(GA25:GA27) -> 2022-09-15 | GB24: =MIN(GB25:GB27) -> 2022-11-01 | GC24: =MAX(GC25:GC27) -> 2025-11-30 | GD24: =MIN(GD25:GD27) -> 2022-09-30 | GE24: =MIN(GE25:GE27) -> 2022-11-01 | GF24: =MAX(GF25:GF27) -> 2025-11-30 | GG24: =MIN(GG25:GG27) -> 2022-10-31 | GH24: =MIN(GH25:GH27) -> 2022-11-14 | GI24: =MAX(GI25:GI27) -> 2025-11-30 | GJ24: =MIN(GJ25:GJ27) -> 2022-10-31 | GK24: =MIN(GK25:GK27) -> 2022-11-14 | GL24: =MAX(GL25:GL27) -> 2025-11-30 | GM24: =MIN(GM25:GM27) -> 2022-11-25 | GN24: =MIN(GN25:GN27) -> 2022-12-09 | GO24: =MAX(GO25:GO27) -> 2025-11-30 | GP24: =MIN(GP25:GP27) -> 2022-11-25 | GQ24: =MIN(GQ25:GQ27) -> 2022-12-09 | GR24: =MAX(GR25:GR27) -> 2025-11-30 | GS24: =MIN(GS25:GS27) -> 2022-11-25 | GT24: =MIN(GT25:GT27) -> 2022-12-09 | GU24: =MAX(GU25:GU27) -> 2025-11-30 | GV24: =MIN(GV25:GV27) -> 2022-11-25 | GW24: =MIN(GW25:GW27) -> 2022-12-09 | GX24: =MAX(GX25:GX27) -> 2025-11-30 | GY24: =MIN(GY25:GY27) -> 2022-11-30 | GZ24: =MIN(GZ25:GZ27) -> 2022-12-14 | HA24: =MAX(HA25:HA27) -> 2025-11-30 | HB24: =MIN(HB25:HB27) -> 2022-11-30 | HC24: =MIN(HC25:HC27) -> 2022-12-14 | HD24: =MAX(HD25:HD27) -> 2025-11-30 | HE24: =MIN(HE25:HE27) -> 2022-12-10 | HF24: =MIN(HF25:HF27) -> 2022-12-24 | HG24: =MAX(HG25:HG27) -> 2025-11-30 | HH24: =MIN(HH25:HH27) -> 2022-12-10 | HI24: =MIN(HI25:HI27) -> 2022-12-24 | HJ24: =MAX(HJ25:HJ27) -> 2025-11-30 | HK24: =MIN(HK25:HK27) -> 2022-12-20 | HL24: =MIN(HL25:HL27) -> 2023-01-13 | HM24: =MAX(HM25:HM27) -> 2025-11-30 | HN24: =MIN(HN25:HN27) -> 2022-12-20 | HO24: =MIN(HO25:HO27) -> 2023-01-13 | HP24: =MAX(HP25:HP27) -> 2025-11-30 | HV24: =MAX(HV25:HV27) -> 2026-06-30 | HW24: =SUM(HW25:HW27) -> 0 | HX24: 0 | HY24: 0 | HZ24: 0 | IA24: 0 | IB24: 0 | IC24: =SUM(IC25:IC27) -> 0 | ID24: 0 | IE24: 0 | IF24: 0 | IG24: 0 | IH24: 0 | II24: 0 | IL24: 87,610
A25: 72 | B25: 3.4.1.1 | C25: СНМ1.01.1.01.1 | D25: ЖР "Седьмое Небо" ЖК "Мой ритм" Микрорайон М-1 ПК-1 ж/д 1-1 | F25: Утеплитель минераловатный t=100мм | G25: λб= не более 0,041 Вт/м*К p=32-44кг/м3 горючесть НГ, каменная вата | H25: м3 | I25: 2,139 | J25: =K25+L25 -> 30,245 | K25: 25,747 | L25: 4,497 | M25: 315 | N25: 590 | O25: 3 | P25: 21-26 | Q25: 1 | R25: Монолит | T25: Новое | Y25: =SUM(II25,#REF!,#REF!,#REF!,#REF!,#REF!,#REF!,#REF!) ->  | AE25: Прединвест | AS25: нет | AT25: 2019-08-10 | AU25: 2019-09-12 | AV25: 2020-05-13 | AW25: 2021-10-30 | AX25: 2022-05-01 | AY25: 2022-06-04 | AZ25: Не требуется | BA25: Не требуется | BB25: 2025-09-30 | BC25: 2025-11-29 | BD25: 2025-12-31 | BE25: нет | BF25: 2019-08-10 | BG25: 2019-09-12 | BH25: 2020-05-13 | BI25: 2021-10-30 | BJ25: 2022-08-15 | BK25: 2022-09-26 | BL25: Не требуется | BM25: Не требуется | BN25: 2025-10-30 | BO25: 2025-12-29 | BP25: 2026-06-30 | BQ25: 2020-08-01 | BR25: 2022-08-30 | BS25: 2021-03-01 | BT25: 2023-03-30 | BU25: 2021-08-01 | BV25: 2023-09-30 | BW25: 2021-07-01 | BX25: 2023-12-30 | BY25: 2021-07-01 | BZ25: 2023-12-30 | CA25: 2021-07-01 | CB25: 2023-12-30 | CC25: 2021-07-01 | CD25: 2023-12-30 | CE25: 2021-09-01 | CF25: 2023-12-30 | CG25: 2021-09-01 | CH25: 2023-12-30 | CI25: 2021-09-01 | CJ25: 2023-12-30 | CK25: 2021-10-01 | CL25: 2023-12-30 | CM25: 2021-09-01 | CN25: 2023-12-30 | CO25: 2021-09-01 | CP25: 2023-12-30 | CQ25: 2021-11-02 | CR25: 2023-12-30 | CS25: 2021-12-01 | CT25: 2024-09-30 | CU25: 2021-12-01 | CV25: 2024-09-30 | CW25: 2021-12-01 | CX25: 2024-09-30 | CY25: 2022-04-25 | CZ25: 2025-04-05 | DA25: 2022-05-21 | DB25: 2025-04-05 | DC25: 2022-05-21 | DD25: 2025-04-05 | DE25: 2022-05-21 | DF25: 2025-04-05 | DG25: 2022-05-21 | DH25: 2025-04-05 | DI25: 2022-05-21 | DJ25: 2025-04-05 | DK25: 2022-05-21 | DL25: 2025-04-05 | DM25: 2022-05-21 | DN25: =DM25+14 -> 2022-06-04 | DO25: 2025-04-05 | DP25: 2022-05-21 | DQ25: =DP25+14 -> 2022-06-04 | DR25: 2025-10-30 | DS25: 2022-05-21 | DT25: =DS25+14 -> 2022-06-04 | DU25: 2025-10-30 | DV25: 2022-05-21 | DW25: =DV25+14 -> 2022-06-04 | DX25: 2025-10-30 | DY25: 2022-05-21 | DZ25: =DY25+14 -> 2022-06-04 | EA25: 2024-11-30 | EB25: 2022-05-21 | EC25: 2022-06-04 | ED25: 2024-11-30 | EE25: =(DO25-DN25)/30 -> 35 | EF25: =(DO25-DM25)/30 -> 35 | EG25: 2019-08-10 | EH25: 2020-05-13 | EI25: 2022-05-21 | EJ25: 2022-06-04 | EK25: 2024-11-30 | EL25: 2022-06-10 | EM25: =EL25+14 -> 2022-06-24 | EN25: 2024-11-30 | EO25: =(#REF!-#REF!)/30 ->  | EP25: 2022-06-10 | EQ25: =EP25+14 -> 2022-06-24 | ER25: 2025-08-30 | ES25: 2022-06-10 | ET25: =ES25+14 -> 2022-06-24 | EU25: 2025-08-30 | EV25: 2022-06-10 | EW25: =EV25+14 -> 2022-06-24 | EX25: 2025-08-30 | EY25: 2022-06-10 | EZ25: 2022-06-24 | FA25: 2025-08-30 | FB25: 2022-08-26 | FC25: =FB25+14 -> 2022-09-09 | FD25: 2025-11-30 | FE25: 2022-08-26 | FF25: 2022-09-15 | FG25: 2025-11-30 | FH25: 2022-08-26 | FI25: 2022-09-15 | FJ25: 2025-11-30 | FK25: 2022-08-26 | FL25: 2022-09-15 | FM25: 2025-11-30 | FN25: 2022-09-15 | FO25: =FN25+14 -> 2022-09-29 | FP25: 2025-11-30 | FQ25: 2022-09-15 | FR25: 2022-11-01 | FS25: 2025-11-01 | FT25: =(FS25-FR25)/30 -> 37 | FU25: 2022-09-15 | FV25: 2022-11-01 | FW25: 2025-11-30 | FX25: 2022-09-15 | FY25: 2022-11-01 | FZ25: 2025-11-30 | GA25: 2022-09-15 | GB25: 2022-11-01 | GC25: 2025-11-30 | GD25: 2022-09-30 | GE25: 2022-11-01 | GF25: 2025-11-30 | GG25: 2022-10-31 | GH25: 2022-11-14 | GI25: 2025-11-30 | GJ25: 2022-10-31 | GK25: 2022-11-14 | GL25: 2025-11-30 | GM25: 2022-11-25 | GN25: =GM25+14 -> 2022-12-09 | GO25: 2025-11-30 | GP25: 2022-11-25 | GQ25: =GP25+14 -> 2022-12-09 | GR25: 2025-11-30 | GS25: 2022-11-25 | GT25: =GS25+14 -> 2022-12-09 | GU25: 2025-11-30 | GV25: 2022-11-25 | GW25: =GV25+14 -> 2022-12-09 | GX25: 2025-11-30 | GY25: 2022-11-30 | GZ25: =GY25+14 -> 2022-12-14 | HA25: 2025-11-30 | HB25: 2022-11-30 | HC25: =HB25+14 -> 2022-12-14 | HD25: 2025-11-30 | HE25: 2022-12-10 | HF25: =HE25+14 -> 2022-12-24 | HG25: 2025-11-30 | HH25: 2022-12-10 | HI25: =HH25+14 -> 2022-12-24 | HJ25: 2025-11-30 | HK25: 2022-12-20 | HL25: =HK25+24 -> 2023-01-13 | HM25: 2025-11-30 | HN25: 2022-12-20 | HO25: =HN25+24 -> 2023-01-13 | HP25: 2025-11-30 | HR25: АБ-1 | HS25: ТИГП | HT25: Не определен | HV25: 2026-06-30 | IF25: ● | II25: =SUM(HW25:IH25) -> 0 | IJ25: =IF(YEAR(#REF!)=HW$8,$J25,0) ->  | IK25: =IF(AND(YEAR(#REF!)<=HW$8,YEAR(#REF!)>HW$8),$J25,0) ->  | IL25: =J25 -> 30,245
A26: 72 | B26: 3.4.1.1 | C26: СНМ1.01.1.01.1 | D26: ЖР "Седьмое Небо" ЖК "Мой ритм" Микрорайон М-1 ПК-1 ж/д 1-1 | F26: Утеплитель минераловатный t=50мм | G26: λ= не более 0,039 Вт/м*К p=72-100кг/м3 горючесть НГ, каменная вата | H26: м3 | I26: 1,070 | J26: =K26+L26 -> 30,245 | K26: 25,747 | L26: 4,497 | M26: 315 | N26: 590 | O26: 3 | P26: 21-26 | Q26: 1 | R26: Монолит | T26: Новое | Y26: =SUM(II26,#REF!,#REF!,#REF!,#REF!,#REF!,#REF!,#REF!) ->  | Z26: =U26-Y26-AA26 ->  | AE26: Прединвест | AS26: нет | AT26: 2019-08-10 | AU26: 2019-09-12 | AV26: 2020-05-13 | AW26: 2021-10-30 | AX26: 2022-05-01 | AY26: 2022-06-04 | AZ26: Не требуется | BA26: Не требуется | BB26: 2025-09-30 | BC26: 2025-11-29 | BD26: 2025-12-31 | BE26: нет | BF26: 2019-08-10 | BG26: 2019-09-12 | BH26: 2020-05-13 | BI26: 2021-10-30 | BJ26: 2022-08-15 | BK26: 2022-09-26 | BL26: Не требуется | BM26: Не требуется | BN26: 2025-10-30 | BO26: 2025-12-29 | BP26: 2026-06-30 | BQ26: 2020-08-01 | BR26: 2022-08-30 | BS26: 2021-03-01 | BT26: 2023-03-30 | BU26: 2021-08-01 | BV26: 2023-09-30 | BW26: 2021-07-01 | BX26: 2023-12-30 | BY26: 2021-07-01 | BZ26: 2023-12-30 | CA26: 2021-07-01 | CB26: 2023-12-30 | CC26: 2021-07-01 | CD26: 2023-12-30 | CE26: 2021-09-01 | CF26: 2023-12-30 | CG26: 2021-09-01 | CH26: 2023-12-30 | CI26: 2021-09-01 | CJ26: 2023-12-30 | CK26: 2021-10-01 | CL26: 2023-12-30 | CM26: 2021-09-01 | CN26: 2023-12-30 | CO26: 2021-09-01 | CP26: 2023-12-30 | CQ26: 2021-11-02 | CR26: 2023-12-30 | CS26: 2021-12-01 | CT26: 2024-09-30 | CU26: 2021-12-01 | CV26: 2024-09-30 | CW26: 2021-12-01 | CX26: 2024-09-30 | CY26: 2022-04-25 | CZ26: 2025-04-05 | DA26: 2022-05-21 | DB26: 2025-04-05 | DC26: 2022-05-21 | DD26: 2025-04-05 | DE26: 2022-05-21 | DF26: 2025-04-05 | DG26: 2022-05-21 | DH26: 2025-04-05 | DI26: 2022-05-21 | DJ26: 2025-04-05 | DK26: 2022-05-21 | DL26: 2025-04-05 | DM26: 2022-05-21 | DN26: =DM26+14 -> 2022-06-04 | DO26: 2025-04-05 | DP26: 2022-05-21 | DQ26: =DP26+14 -> 2022-06-04 | DR26: 2025-10-30 | DS26: 2022-05-21 | DT26: =DS26+14 -> 2022-06-04 | DU26: 2025-10-30 | DV26: 2022-05-21 | DW26: =DV26+14 -> 2022-06-04 | DX26: 2025-10-30 | DY26: 2022-05-21 | DZ26: =DY26+14 -> 2022-06-04 | EA26: 2024-11-30 | EB26: 2022-05-21 | EC26: 2022-06-04 | ED26: 2024-11-30 | EE26: =(DO26-DN26)/30 -> 35 | EF26: =(DO26-DM26)/30 -> 35 | EG26: 2019-08-10 | EH26: 2020-05-13 | EI26: 2022-05-21 | EJ26: 2022-06-04 | EK26: 2024-11-30 | EL26: 2022-06-10 | EM26: =EL26+14 -> 2022-06-24 | EN26: 2024-11-30 | EO26: =(#REF!-#REF!)/30 ->  | EP26: 2022-06-10 | EQ26: =EP26+14 -> 2022-06-24 | ER26: 2025-08-30 | ES26: 2022-06-10 | ET26: =ES26+14 -> 2022-06-24 | EU26: 2025-08-30 | EV26: 2022-06-10 | EW26: =EV26+14 -> 2022-06-24 | EX26: 2025-08-30 | EY26: 2022-06-10 | EZ26: 2022-06-24 | FA26: 2025-08-30 | FB26: 2022-08-26 | FC26: =FB26+14 -> 2022-09-09 | FD26: 2025-11-30 | FE26: 2022-08-26 | FF26: 2022-09-15 | FG26: 2025-11-30 | FH26: 2022-08-26 | FI26: 2022-09-15 | FJ26: 2025-11-30 | FK26: 2022-08-26 | FL26: 2022-09-15 | FM26: 2025-11-30 | FN26: 2022-09-15 | FO26: =FN26+14 -> 2022-09-29 | FP26: 2025-11-30 | FQ26: 2022-09-15 | FR26: 2022-11-01 | FS26: 2025-11-01 | FT26: =(FS26-FR26)/30 -> 37 | FU26: 2022-09-15 | FV26: 2022-11-01 | FW26: 2025-11-30 | FX26: 2022-09-15 | FY26: 2022-11-01 | FZ26: 2025-11-30 | GA26: 2022-09-15 | GB26: 2022-11-01 | GC26: 2025-11-30 | GD26: 2022-09-30 | GE26: 2022-11-01 | GF26: 2025-11-30 | GG26: 2022-10-31 | GH26: 2022-11-14 | GI26: 2025-11-30 | GJ26: 2022-10-31 | GK26: 2022-11-14 | GL26: 2025-11-30 | GM26: 2022-11-25 | GN26: =GM26+14 -> 2022-12-09 | GO26: 2025-11-30 | GP26: 2022-11-25 | GQ26: =GP26+14 -> 2022-12-09 | GR26: 2025-11-30 | GS26: 2022-11-25 | GT26: =GS26+14 -> 2022-12-09 | GU26: 2025-11-30 | GV26: 2022-11-25 | GW26: =GV26+14 -> 2022-12-09 | GX26: 2025-11-30 | GY26: 2022-11-30 | GZ26: =GY26+14 -> 2022-12-14 | HA26: 2025-11-30 | HB26: 2022-11-30 | HC26: =HB26+14 -> 2022-12-14 | HD26: 2025-11-30 | HE26: 2022-12-10 | HF26: =HE26+14 -> 2022-12-24 | HG26: 2025-11-30 | HH26: 2022-12-10 | HI26: =HH26+14 -> 2022-12-24 | HJ26: 2025-11-30 | HK26: 2022-12-20 | HL26: =HK26+24 -> 2023-01-13 | HM26: 2025-11-30 | HN26: 2022-12-20 | HO26: =HN26+24 -> 2023-01-13 | HP26: 2025-11-30 | HR26: АБ-1 | HS26: ТИГП | HT26: Не определен | HV26: 2026-06-30 | IF26: ● | II26: =SUM(HW26:IH26) -> 0 | IJ26: =IF(YEAR(#REF!)=HW$8,$J26,0) ->  | IK26: =IF(AND(YEAR(#REF!)<=HW$8,YEAR(#REF!)>HW$8),$J26,0) ->  | IL26: =J26 -> 30,245
A27: 73 | B27: 3.4.1.2 | C27: СНМ1.01.1.01.2 | D27: ЖР "Седьмое Небо" ЖК "Мой ритм" Микрорайон М-1 ПК-1 ж/д 1-2 | F27: Утеплитель минераловатный t=100мм | G27: λб= не более 0,041 Вт/м*К p=32-44кг/м3 горючесть НГ, каменная вата | H27: м3 | I27: 1,918 | J27: =K27+L27 -> 27,121 | K27: 24,716 | L27: 2,405 | N27: 471 | O27: 7 | P27: 11-18 | Q27: 1 | R27: Монолит | T27: Новое | Y27: =SUM(II27,#REF!,#REF!,#REF!,#REF!,#REF!,#REF!,#REF!) ->  | AE27: Прединвест | AS27: нет | AT27: 2019-08-10 | AU27: 2019-09-12 | AV27: 2020-05-13 | AW27: 2021-10-30 | AX27: 2022-05-01 | AY27: 2022-06-04 | AZ27: Не требуется | BA27: Не требуется | BB27: 2025-09-30 | BC27: 2025-11-29 | BD27: 2025-12-31 | BE27: нет | BF27: 2019-08-10 | BG27: 2019-09-12 | BH27: 2020-05-13 | BI27: 2021-10-30 | BJ27: 2022-08-15 | BK27: 2022-09-26 | BL27: Не требуется | BM27: Не требуется | BN27: 2025-10-30 | BO27: 2025-12-29 | BP27: 2026-06-30 | BQ27: 2020-08-01 | BR27: 2022-08-30 | BS27: 2021-03-01 | BT27: 2023-03-30 | BU27: 2021-08-01 | BV27: 2023-09-30 | BW27: 2021-07-01 | BX27: 2023-08-30 | BY27: 2021-07-01 | BZ27: 2023-08-30 | CA27: 2021-07-01 | CB27: 2023-08-30 | CC27: 2021-07-01 | CD27: 2023-08-30 | CE27: 2021-09-01 | CF27: 2023-12-30 | CG27: 2021-09-01 | CH27: 2023-12-30 | CI27: 2021-09-01 | CJ27: 2023-12-30 | CK27: 2021-10-01 | CL27: 2023-12-30 | CM27: 2021-09-01 | CN27: 2023-12-30 | CO27: 2021-09-01 | CP27: 2023-12-30 | CQ27: 2021-11-02 | CR27: 2023-12-30 | CS27: 2021-12-01 | CT27: 2024-09-30 | CU27: 2021-12-01 | CV27: 2024-09-30 | CW27: 2021-12-01 | CX27: 2024-09-30 | CY27: 2022-04-25 | CZ27: 2025-04-05 | DA27: 2022-05-21 | DB27: 2025-04-05 | DC27: 2022-05-21 | DD27: 2025-04-05 | DE27: 2022-05-21 | DF27: 2025-04-05 | DG27: 2022-05-21 | DH27: 2025-04-05 | DI27: 2022-05-21 | DJ27: 2025-04-05 | DK27: 2022-05-21 | DL27: 2025-04-05 | DM27: 2022-05-21 | DN27: =DM27+14 -> 2022-06-04 | DO27: 2025-04-05 | DP27: 2022-05-21 | DQ27: =DP27+14 -> 2022-06-04 | DR27: 2025-10-30 | DS27: 2022-05-21 | DT27: =DS27+14 -> 2022-06-04 | DU27: 2025-10-30 | DV27: 2022-05-21 | DW27: =DV27+14 -> 2022-06-04 | DX27: 2025-10-30 | DY27: 2022-05-21 | DZ27: =DY27+14 -> 2022-06-04 | EA27: 2024-11-30 | EB27: 2022-05-21 | EC27: 2022-06-04 | ED27: 2024-11-30 | EE27: =(DO27-DN27)/30 -> 35 | EF27: =(DO27-DM27)/30 -> 35 | EG27: 2019-08-10 | EH27: 2020-05-13 | EI27: 2022-05-21 | EJ27: 2022-06-04 | EK27: 2024-11-30 | EL27: 2022-06-10 | EM27: =EL27+14 -> 2022-06-24 | EN27: 2024-11-30 | EO27: =(#REF!-#REF!)/30 ->  | EP27: 2022-06-10 | EQ27: =EP27+14 -> 2022-06-24 | ER27: 2025-08-30 | ES27: 2022-06-10 | ET27: =ES27+14 -> 2022-06-24 | EU27: 2025-08-30 | EV27: 2022-06-10 | EW27: =EV27+14 -> 2022-06-24 | EX27: 2025-08-30 | EY27: 2022-06-10 | EZ27: 2022-06-24 | FA27: 2025-08-30 | FB27: 2022-08-26 | FC27: =FB27+14 -> 2022-09-09 | FD27: 2025-11-30 | FE27: 2022-08-26 | FF27: 2022-09-15 | FG27: 2025-11-30 | FH27: 2022-08-26 | FI27: 2022-09-15 | FJ27: 2025-11-30 | FK27: 2022-08-26 | FL27: 2022-09-15 | FM27: 2025-11-30 | FN27: 2022-09-15 | FO27: =FN27+14 -> 2022-09-29 | FP27: 2025-11-30 | FQ27: 2022-09-15 | FR27: 2022-11-01 | FS27: 2025-11-01 | FT27: =(FS27-FR27)/30 -> 37 | FU27: 2022-09-15 | FV27: 2022-11-01 | FW27: 2025-11-30 | FX27: 2022-09-15 | FY27: 2022-11-01 | FZ27: 2025-11-30 | GA27: 2022-09-15 | GB27: 2022-11-01 | GC27: 2025-11-30 | GD27: 2022-09-30 | GE27: 2022-11-01 | GF27: 2025-11-30 | GG27: 2022-10-31 | GH27: 2022-11-14 | GI27: 2025-11-30 | GJ27: 2022-10-31 | GK27: 2022-11-14 | GL27: 2025-11-30 | GM27: 2022-11-25 | GN27: =GM27+14 -> 2022-12-09 | GO27: 2025-11-30 | GP27: 2022-11-25 | GQ27: =GP27+14 -> 2022-12-09 | GR27: 2025-11-30 | GS27: 2022-11-25 | GT27: =GS27+14 -> 2022-12-09 | GU27: 2025-11-30 | GV27: 2022-11-25 | GW27: =GV27+14 -> 2022-12-09 | GX27: 2025-11-30 | GY27: 2022-11-30 | GZ27: =GY27+14 -> 2022-12-14 | HA27: 2025-11-30 | HB27: 2022-11-30 | HC27: =HB27+14 -> 2022-12-14 | HD27: 2025-11-30 | HE27: 2022-12-10 | HF27: =HE27+14 -> 2022-12-24 | HG27: 2025-11-30 | HH27: 2022-12-10 | HI27: =HH27+14 -> 2022-12-24 | HJ27: 2025-11-30 | HK27: 2022-12-20 | HL27: =HK27+24 -> 2023-01-13 | HM27: 2025-11-30 | HN27: 2022-12-20 | HO27: =HN27+24 -> 2023-01-13 | HP27: 2025-11-30 | HR27: АБ-1 | HS27: ТИГП | HT27: Не определен | HV27: 2026-06-30 | IF27: ● | II27: =SUM(HW27:IH27) -> 0 | IJ27: =IF(YEAR(#REF!)=HW$8,$J27,0) ->  | IK27: =IF(AND(YEAR(#REF!)<=HW$8,YEAR(#REF!)>HW$8),$J27,0) ->  | IL27: =J27 -> 27,121
A28: 73 | B28: 3.4.1.2 | C28: СНМ1.01.1.01.2 | D28: ЖР "Седьмое Небо" ЖК "Мой ритм" Микрорайон М-1 ПК-1 ж/д 1-2 | F28: Утеплитель минераловатный t=50мм | G28: λ= не более 0,039 Вт/м*К p=72-100кг/м3 горючесть НГ, каменная вата | H28: м3 | I28: 959 | J28: =K28+L28 -> 27,121 | K28: 24,716 | L28: 2,405 | N28: 471 | O28: 7 | P28: 11-18 | Q28: 1 | R28: Монолит | T28: Новое | Y28: =SUM(II28,#REF!,#REF!,#REF!,#REF!,#REF!,#REF!,#REF!) ->  | Z28: =U28-Y28-AA28 ->  | AE28: Прединвест | AS28: нет | AT28: 2019-08-10 | AU28: 2019-09-12 | AV28: 2020-05-13 | AW28: 2021-10-30 | AX28: 2022-05-01 | AY28: 2022-06-04 | AZ28: Не требуется | BA28: Не требуется | BB28: 2025-09-30 | BC28: 2025-11-29 | BD28: 2025-12-31 | BE28: нет | BF28: 2019-08-10 | BG28: 2019-09-12 | BH28: 2020-05-13 | BI28: 2021-10-30 | BJ28: 2022-08-15 | BK28: 2022-09-26 | BL28: Не требуется | BM28: Не требуется | BN28: 2025-10-30 | BO28: 2025-12-29 | BP28: 2026-06-30 | BQ28: 2020-08-01 | BR28: 2022-08-30 | BS28: 2021-03-01 | BT28: 2023-03-30 | BU28: 2021-08-01 | BV28: 2023-09-30 | BW28: 2021-07-01 | BX28: 2023-08-30 | BY28: 2021-07-01 | BZ28: 2023-08-30 | CA28: 2021-07-01 | CB28: 2023-08-30 | CC28: 2021-07-01 | CD28: 2023-08-30 | CE28: 2021-09-01 | CF28: 2023-12-30 | CG28: 2021-09-01 | CH28: 2023-12-30 | CI28: 2021-09-01 | CJ28: 2023-12-30 | CK28: 2021-10-01 | CL28: 2023-12-30 | CM28: 2021-09-01 | CN28: 2023-12-30 | CO28: 2021-09-01 | CP28: 2023-12-30 | CQ28: 2021-11-02 | CR28: 2023-12-30 | CS28: 2021-12-01 | CT28: 2024-09-30 | CU28: 2021-12-01 | CV28: 2024-09-30 | CW28: 2021-12-01 | CX28: 2024-09-30 | CY28: 2022-04-25 | CZ28: 2025-04-05 | DA28: 2022-05-21 | DB28: 2025-04-05 | DC28: 2022-05-21 | DD28: 2025-04-05 | DE28: 2022-05-21 | DF28: 2025-04-05 | DG28: 2022-05-21 | DH28: 2025-04-05 | DI28: 2022-05-21 | DJ28: 2025-04-05 | DK28: 2022-05-21 | DL28: 2025-04-05 | DM28: 2022-05-21 | DN28: =DM28+14 -> 2022-06-04 | DO28: 2025-04-05 | DP28: 2022-05-21 | DQ28: =DP28+14 -> 2022-06-04 | DR28: 2025-10-30 | DS28: 2022-05-21 | DT28: =DS28+14 -> 2022-06-04 | DU28: 2025-10-30 | DV28: 2022-05-21 | DW28: =DV28+14 -> 2022-06-04 | DX28: 2025-10-30 | DY28: 2022-05-21 | DZ28: =DY28+14 -> 2022-06-04 | EA28: 2024-11-30 | EB28: 2022-05-21 | EC28: 2022-06-04 | ED28: 2024-11-30 | EE28: =(DO28-DN28)/30 -> 35 | EF28: =(DO28-DM28)/30 -> 35 | EG28: 2019-08-10 | EH28: 2020-05-13 | EI28: 2022-05-21 | EJ28: 2022-06-04 | EK28: 2024-11-30 | EL28: 2022-06-10 | EM28: =EL28+14 -> 2022-06-24 | EN28: 2024-11-30 | EO28: =(#REF!-#REF!)/30 ->  | EP28: 2022-06-10 | EQ28: =EP28+14 -> 2022-06-24 | ER28: 2025-08-30 | ES28: 2022-06-10 | ET28: =ES28+14 -> 2022-06-24 | EU28: 2025-08-30 | EV28: 2022-06-10 | EW28: =EV28+14 -> 2022-06-24 | EX28: 2025-08-30 | EY28: 2022-06-10 | EZ28: 2022-06-24 | FA28: 2025-08-30 | FB28: 2022-08-26 | FC28: =FB28+14 -> 2022-09-09 | FD28: 2025-11-30 | FE28: 2022-08-26 | FF28: 2022-09-15 | FG28: 2025-11-30 | FH28: 2022-08-26 | FI28: 2022-09-15 | FJ28: 2025-11-30 | FK28: 2022-08-26 | FL28: 2022-09-15 | FM28: 2025-11-30 | FN28: 2022-09-15 | FO28: =FN28+14 -> 2022-09-29 | FP28: 2025-11-30 | FQ28: 2022-09-15 | FR28: 2022-11-01 | FS28: 2025-11-01 | FT28: =(FS28-FR28)/30 -> 37 | FU28: 2022-09-15 | FV28: 2022-11-01 | FW28: 2025-11-30 | FX28: 2022-09-15 | FY28: 2022-11-01 | FZ28: 2025-11-30 | GA28: 2022-09-15 | GB28: 2022-11-01 | GC28: 2025-11-30 | GD28: 2022-09-30 | GE28: 2022-11-01 | GF28: 2025-11-30 | GG28: 2022-10-31 | GH28: 2022-11-14 | GI28: 2025-11-30 | GJ28: 2022-10-31 | GK28: 2022-11-14 | GL28: 2025-11-30 | GM28: 2022-11-25 | GN28: =GM28+14 -> 2022-12-09 | GO28: 2025-11-30 | GP28: 2022-11-25 | GQ28: =GP28+14 -> 2022-12-09 | GR28: 2025-11-30 | GS28: 2022-11-25 | GT28: =GS28+14 -> 2022-12-09 | GU28: 2025-11-30 | GV28: 2022-11-25 | GW28: =GV28+14 -> 2022-12-09 | GX28: 2025-11-30 | GY28: 2022-11-30 | GZ28: =GY28+14 -> 2022-12-14 | HA28: 2025-11-30 | HB28: 2022-11-30 | HC28: =HB28+14 -> 2022-12-14 | HD28: 2025-11-30 | HE28: 2022-12-10 | HF28: =HE28+14 -> 2022-12-24 | HG28: 2025-11-30 | HH28: 2022-12-10 | HI28: =HH28+14 -> 2022-12-24 | HJ28: 2025-11-30 | HK28: 2022-12-20 | HL28: =HK28+24 -> 2023-01-13 | HM28: 2025-11-30 | HN28: 2022-12-20 | HO28: =HN28+24 -> 2023-01-13 | HP28: 2025-11-30 | HR28: АБ-1 | HS28: ТИГП | HT28: Не определен | HV28: 2026-06-30 | IF28: ● | II28: =SUM(HW28:IH28) -> 0 | IJ28: =IF(YEAR(#REF!)=HW$8,$J28,0) ->  | IK28: =IF(AND(YEAR(#REF!)<=HW$8,YEAR(#REF!)>HW$8),$J28,0) ->  | IL28: =J28 -> 27,121
A29: 266 | B29: 13.1.2 | C29: СК00.01.0.00.0 | D29: ЖК "Салават Купере" Квартал №1 | E29: =SUM(E30:E40) -> 0 | J29: =SUM(J30:J40) -> 83,591 | K29: =SUM(K30:K40) -> 78,269 | L29: =SUM(L30:L40) -> 5,322 | M29: =SUM(M30:M40) -> 0 | N29: =SUM(N30:N40) -> 1,500 | Q29: =SUM(Q30:Q40) -> 11 | U29: =SUM(U30:U40) -> 52,746 | V29: =SUM(V30:V40) -> 41,458 | W29: =SUM(W30:W40) -> 3,885 | Y29: =SUM(II29,#REF!,#REF!,#REF!,#REF!,#REF!,#REF!,#REF!) ->  | Z29: =U29-Y29-AA29 ->  | AA29: =SUM(AA30:AA40) -> 0 | AB29: =II29+#REF!+#REF!+#REF!+#REF!+#REF!+#REF!+#REF! ->  | AC29: =J29-AB29 ->  | BQ29: 2020-08-01 | BR29: 2022-06-30 | BS29: 2020-07-01 | BT29: 2022-11-30 | BU29: 2020-07-01 | BV29: 2022-08-30 | BW29: 2020-06-01 | BX29: 2022-07-03 | BY29: 2020-06-01 | BZ29: 2022-07-03 | CA29: 2020-06-01 | CB29: 2022-07-03 | CC29: 2020-06-01 | CD29: 2022-07-03 | CE29: 2020-06-01 | CF29: 2022-07-03 | CG29: 2020-06-01 | CH29: 2022-07-03 | CI29: 2020-06-01 | CJ29: 2022-07-03 | CK29: 2020-06-01 | CL29: 2022-07-03 | CM29: 2020-06-01 | CN29: 2022-07-03 | CO29: 2020-06-01 | CP29: 2022-07-03 | CQ29: =MIN(CQ30:CQ40) -> 00:00:00 | CR29: =MAX(CR30:CR40) -> 00:00:00 | CS29: =MIN(CS30:CS40) -> 00:00:00 | CT29: =MAX(CT30:CT40) -> 00:00:00 | CU29: =MIN(CU30:CU40) -> 00:00:00 | CV29: =MAX(CV30:CV40) -> 00:00:00 | CW29: =MIN(CW30:CW40) -> 00:00:00 | CX29: =MAX(CX30:CX40) -> 00:00:00 | CY29: =MIN(CY30:CY40) -> 00:00:00 | CZ29: =MAX(CZ30:CZ40) -> 00:00:00 | DA29: =MIN(DA30:DA40) -> 00:00:00 | DB29: =MAX(DB30:DB40) -> 00:00:00 | DC29: =MIN(DC30:DC40) -> 00:00:00 | DD29: =MAX(DD30:DD40) -> 00:00:00 | DE29: =MIN(DE30:DE40) -> 00:00:00 | DF29: =MAX(DF30:DF40) -> 00:00:00 | DG29: =MIN(DG30:DG40) -> 00:00:00 | DH29: =MAX(DH30:DH40) -> 00:00:00 | DI29: =MIN(DI30:DI40) -> 00:00:00 | DJ29: =MAX(DJ30:DJ40) -> 00:00:00 | DK29: =MIN(DK30:DK40) -> 00:00:00 | DL29: =MAX(DL30:DL40) -> 00:00:00 | DM29: =MIN(DM30:DM40) -> 00:00:00 | DN29: =MIN(DN30:DN40) -> 00:00:00 | DO29: =MAX(DO30:DO40) -> 00:00:00 | DP29: =MIN(DP30:DP40) -> 00:00:00 | DQ29: =MIN(DQ30:DQ40) -> 00:00:00 | DR29: =MAX(DR30:DR40) -> 00:00:00 | DS29: =MIN(DS30:DS40) -> 00:00:00 | DT29: =MIN(DT30:DT40) -> 00:00:00 | DU29: =MAX(DU30:DU40) -> 00:00:00 | DV29: =MIN(DV30:DV40) -> 00:00:00 | DW29: =MIN(DW30:DW40) -> 00:00:00 | DX29: =MAX(DX30:DX40) -> 00:00:00 | DY29: =MIN(DY30:DY40) -> 00:00:00 | DZ29: =MIN(DZ30:DZ40) -> 00:00:00 | EA29: =MAX(EA30:EA40) -> 00:00:00 | EB29: 2020-07-01 | EC29: 2020-06-01 | ED29: 2022-07-03 | EI29: 2020-07-01 | EJ29: 2020-06-01 | EK29: 2022-07-03 | EL29: =MIN(EL30:EL40) -> 00:00:00 | EM29: =MIN(EM30:EM40) -> 00:00:00 | EN29: =MAX(EN30:EN40) -> 00:00:00 | EP29: =MIN(EP30:EP40) -> 00:00:00 | EQ29: =MIN(EQ30:EQ40) -> 00:00:00 | ER29: =MAX(ER30:ER40) -> 00:00:00 | ES29: =MIN(ES30:ES40) -> 00:00:00 | ET29: =MIN(ET30:ET40) -> 00:00:00 | EU29: =MAX(EU30:EU40) -> 00:00:00 | EV29: =MIN(EV30:EV40) -> 00:00:00 | EW29: =MIN(EW30:EW40) -> 00:00:00 | EX29: =MAX(EX30:EX40) -> 00:00:00 | EY29: 2020-07-01 | EZ29: 2020-07-01 | FA29: 2022-07-03 | FB29: =MIN(FB30:FB40) -> 00:00:00 | FC29: =MIN(FC30:FC40) -> 00:00:00 | FD29: =MAX(FD30:FD40) -> 00:00:00 | FE29: =MIN(FE30:FE40) -> 00:00:00 | FF29: =MIN(FF30:FF40) -> 00:00:00 | FG29: =MAX(FG30:FG40) -> 00:00:00 | FH29: 2020-07-01 | FI29: 2020-07-01 | FJ29: 2022-07-03 | FK29: =MIN(FK30:FK40) -> 00:00:00 | FL29: =MIN(FL30:FL40) -> 00:00:00 | FM29: =MAX(FM30:FM40) -> 00:00:00 | FN29: =MIN(FN30:FN40) -> 00:00:00 | FO29: =MIN(FO30:FO40) -> 00:00:00 | FP29: =MAX(FP30:FP40) -> 00:00:00 | FQ29: 2020-07-01 | FR29: 2020-07-01 | FS29: 2022-07-03 | FU29: =MIN(FU30:FU40) -> 2022-08-01 | FV29: =MIN(FV30:FV40) -> 2022-08-15 | FW29: =MAX(FW30:FW40) -> 2025-01-21 | FX29: 2022-09-30 | FY29: 2022-07-15 | FZ29: 2024-12-30 | GA29: =MIN(GA30:GA40) -> 2022-09-30 | GB29: =MIN(GB30:GB40) -> 2022-07-15 | GC29: =MAX(GC30:GC40) -> 2024-12-30 | GD29: =MIN(GD30:GD40) -> 2022-09-30 | GE29: =MIN(GE30:GE40) -> 2022-07-15 | GF29: =MAX(GF30:GF40) -> 2024-12-30 | GG29: =MIN(GG30:GG40) -> 2022-09-30 | GH29: =MIN(GH30:GH40) -> 2022-07-15 | GI29: =MAX(GI30:GI40) -> 2024-12-30 | GJ29: =MIN(GJ30:GJ40) -> 2022-09-30 | GK29: =MIN(GK30:GK40) -> 2022-07-15 | GL29: =MAX(GL30:GL40) -> 2024-12-30 | GM29: =MIN(GM30:GM40) -> 2022-09-30 | GN29: =MIN(GN30:GN40) -> 2022-07-01 | GO29: =MAX(GO30:GO40) -> 2024-12-30 | GP29: =MIN(GP30:GP40) -> 2022-09-30 | GQ29: =MIN(GQ30:GQ40) -> 2022-07-01 | GR29: =MAX(GR30:GR40) -> 2024-10-30 | GS29: =MIN(GS30:GS40) -> 2022-09-30 | GT29: =MIN(GT30:GT40) -> 2022-07-01 | GU29: =MAX(GU30:GU40) -> 2024-10-30 | GV29: =MIN(GV30:GV40) -> 2022-09-30 | GW29: =MIN(GW30:GW40) -> 2022-07-01 | GX29: =MAX(GX30:GX40) -> 2024-10-30 | GY29: =MIN(GY30:GY40) -> 2022-09-30 | GZ29: =MIN(GZ30:GZ40) -> 2022-07-01 | HA29: =MAX(HA30:HA40) -> 2025-11-30 | HB29: =MIN(HB30:HB40) -> 2022-09-30 | HC29: =MIN(HC30:HC40) -> 2022-07-01 | HD29: =MAX(HD30:HD40) -> 2025-11-30 | HE29: =MIN(HE30:HE40) -> 2022-09-30 | HF29: =MIN(HF30:HF40) -> 2022-07-01 | HG29: =MAX(HG30:HG40) -> 2024-12-30 | HH29: =MIN(HH30:HH40) -> 2022-11-30 | HI29: =MIN(HI30:HI40) -> 2022-07-01 | HJ29: =MAX(HJ30:HJ40) -> 2024-12-30 | HK29: =MIN(HK30:HK40) -> 2022-11-30 | HL29: =MIN(HL30:HL40) -> 2022-07-01 | HM29: =MAX(HM30:HM40) -> 2024-12-30 | HN29: =MIN(HN30:HN40) -> 2022-11-30 | HO29: =MIN(HO30:HO40) -> 2022-07-01 | HP29: =MAX(HP30:HP40) -> 2024-12-30 | HW29: =SUM(HW30:HW40) -> 0 | HX29: 0 | HY29: 0 | HZ29: 0 | IA29: 0 | IB29: 0 | IC29: 0 | ID29: 0 | IE29: 0 | IF29: 0 | IG29: 0 | IH29: 0 | II29: 0 | IL29: 0
A30: 279 | B30: 13.1.2.1 | C30: СК00.01.1.05.1 | D30: ЖК "Салават Купере" Квартал №1 ж/д 5-1 | F30: Утеплитель минераловатный t=150 мм | G30: λ=0,038-0,041 Вт/м*К t=150мм p=131-159кг/м3 Горючесть НГ Каменная вата | H30: м3 | I30: 565 | J30: 5,325 | K30: 4,915 | L30: 411 | N30: 72 | Q30: 1 | R30: КПД, 1 каркас | T30: Перепривязка | U30: 3,637 | V30: =U30*0.786 -> 2,859 | W30: 300 | Y30: =SUM(II30,#REF!,#REF!,#REF!,#REF!,#REF!,#REF!,#REF!) ->  | Z30: =U30-Y30-AA30 ->  | FU30: 2022-08-01 | FV30: =FU30+14 -> 2022-08-15 | FW30: 2023-11-24 | FX30: 2022-09-30 | FY30: 2022-07-15 | FZ30: 2023-10-30 | GA30: 2022-09-30 | GB30: 2022-07-15 | GC30: 2023-10-30 | GD30: 2022-09-30 | GE30: 2022-07-15 | GF30: 2023-10-30 | GG30: 2022-09-30 | GH30: 2022-07-15 | GI30: 2023-10-30 | GJ30: 2022-09-30 | GK30: 2022-07-15 | GL30: 2023-10-30 | GM30: 2022-09-30 | GN30: 2022-07-01 | GO30: 2023-10-30 | GP30: 2022-09-30 | GQ30: 2022-07-01 | GR30: 2023-10-30 | GS30: 2022-09-30 | GT30: 2022-07-01 | GU30: 2023-10-30 | GV30: 2022-09-30 | GW30: 2022-07-01 | GX30: 2023-10-30 | GY30: 2022-09-30 | GZ30: 2022-07-01 | HA30: 2023-10-30 | HB30: 2022-09-30 | HC30: 2022-07-01 | HD30: 2023-10-30 | HE30: 2022-09-30 | HF30: 2022-07-01 | HG30: 2023-10-30 | HH30: 2022-11-30 | HI30: 2022-07-01 | HJ30: 2023-10-30 | HK30: 2022-11-30 | HL30: 2022-07-01 | HM30: 2023-10-30 | HN30: 2022-11-30 | HO30: 2022-07-01 | HP30: 2023-10-30 | HR30: АБ-1 | HS30: АБ-1 | HT30: АБСт | HV30: - | II30: =SUM(HW30:IH30) -> 0 | IJ30: =IF(YEAR(#REF!)=HW$8,$J30,0) ->  | IK30: =IF(AND(YEAR(#REF!)<=HW$8,YEAR(#REF!)>HW$8),$J30,0) -> 
A31: 279 | B31: 13.1.2.2 | C31: СК00.01.1.05.2 | D31: ЖК "Салават Купере" Квартал №1 ж/д 5-2 | F31: Утеплитель минераловатный t=150 мм | G31: λ=0,038-0,041 Вт/м*К t=150мм p=131-159кг/м3 Горючесть НГ Каменная вата | H31: м3 | I31: 565 | J31: 5,325 | K31: 4,915 | L31: 411 | N31: 72 | Q31: 1 | R31: КПД, 1 Каркас | T31: Перепривязка | U31: 3,637 | V31: 2,859 | W31: 300 | Y31: =SUM(II31,#REF!,#REF!,#REF!,#REF!,#REF!,#REF!,#REF!) ->  | FU31: 2022-08-01 | FV31: 2022-08-15 | FW31: 2023-11-24 | FX31: 2022-09-30 | FY31: 2022-07-15 | FZ31: 2023-10-30 | GA31: 2022-09-30 | GB31: 2022-07-15 | GC31: 2023-10-30 | GD31: 2022-09-30 | GE31: 2022-07-15 | GF31: 2023-10-30 | GG31: 2022-09-30 | GH31: 2022-07-15 | GI31: 2023-10-30 | GJ31: 2022-09-30 | GK31: 2022-07-15 | GL31: 2023-10-30 | GM31: 2022-09-30 | GN31: 2022-07-01 | GO31: 2023-10-30 | GP31: 2022-09-30 | GQ31: 2022-07-01 | GR31: 2023-10-30 | GS31: 2022-09-30 | GT31: 2022-07-01 | GU31: 2023-10-30 | GV31: 2022-09-30 | GW31: 2022-07-01 | GX31: 2023-10-30 | GY31: 2022-09-30 | GZ31: 2022-07-01 | HA31: 2023-10-30 | HB31: 2022-09-30 | HC31: 2022-07-01 | HD31: 2023-10-30 | HE31: 2022-09-30 | HF31: 2022-07-01 | HG31: 2023-10-30 | HH31: 2022-11-30 | HI31: 2022-07-01 | HJ31: 2023-10-30 | HK31: 2022-11-30 | HL31: 2022-07-01 | HM31: 2023-10-30 | HN31: 2022-11-30 | HO31: 2022-07-01 | HP31: 2023-10-30 | HR31: АБ-1 | HS31: АБ-1 | HT31: АБСт | HV31: - | II31: 0 | IJ31: =IF(YEAR(#REF!)=HW$8,$J31,0) ->  | IK31: =IF(AND(YEAR(#REF!)<=HW$8,YEAR(#REF!)>HW$8),$J31,0) -> 
A32: 267 | B32: 13.1.2.3 | C32: СК00.01.1.03.1 | D32: ЖК "Салават Купере" Квартал №1 ж/д 3-1 | F32: Утеплитель минераловатный t=150 мм | G32: λ=0,038-0,041 Вт/м*К t=150мм p=131-159кг/м3 Горючесть НГ Каменная вата | H32: м3 | I32: 824 | J32: 7,766 | K32: 7,366 | L32: 400 | N32: 140 | Q32: 1 | R32: КПД, 1 Каркас | T32: Новое | U32: 4,788 | V32: 3,763 | W32: 292 | Y32: =SUM(II32,#REF!,#REF!,#REF!,#REF!,#REF!,#REF!,#REF!) ->  | FU32: 2022-11-01 | FV32: 2022-11-15 | FW32: 2024-06-23 | FX32: 2022-12-30 | FY32: 2022-09-30 | FZ32: 2023-12-30 | GA32: 2022-12-30 | GB32: 2022-09-30 | GC32: 2023-12-30 | GD32: 2022-12-30 | GE32: 2022-09-30 | GF32: 2023-12-30 | GG32: 2022-12-30 | GH32: 2022-09-30 | GI32: 2023-12-30 | GJ32: 2022-12-30 | GK32: 2022-09-30 | GL32: 2023-12-30 | GM32: 2022-12-30 | GN32: 2022-09-30 | GO32: 2023-12-30 | GP32: 2022-12-30 | GQ32: 2022-09-30 | GR32: 2023-12-30 | GS32: 2022-12-30 | GT32: 2022-09-30 | GU32: 2023-12-30 | GV32: 2022-12-30 | GW32: 2022-09-30 | GX32: 2023-12-30 | GY32: 2022-12-30 | GZ32: 2022-09-30 | HA32: 2023-12-30 | HB32: 2022-12-30 | HC32: 2022-09-30 | HD32: 2023-12-30 | HE32: 2022-12-30 | HF32: 2022-09-30 | HG32: 2023-12-30 | HH32: 2022-12-30 | HI32: 2022-09-30 | HJ32: 2023-12-30 | HK32: 2022-12-30 | HL32: 2022-09-30 | HM32: 2023-12-30 | HN32: 2022-12-30 | HO32: 2022-09-30 | HP32: 2023-12-30 | HR32: АБ-1 | HS32: АБ-1 | HT32: АБСт | HV32: - | II32: 0 | IJ32: =IF(YEAR(#REF!)=HW$8,$J32,0) ->  | IK32: =IF(AND(YEAR(#REF!)<=HW$8,YEAR(#REF!)>HW$8),$J32,0) -> 
A33: 268 | B33: 13.1.2.4 | C33: СК00.01.1.03.2 | D33: ЖК "Салават Купере" Квартал №1 ж/д 3-2 | F33: Утеплитель минераловатный t=150 мм | G33: λ=0,038-0,041 Вт/м*К t=150мм p=131-159кг/м3 Горючесть НГ Каменная вата | H33: м3 | I33: 933 | J33: 8,789 | K33: 8,209 | L33: 580 | N33: 168 | Q33: 1 | R33: КПД, 1 Каркас | T33: Новое | U33: 5,336 | V33: 4,194 | W33: 423 | Y33: =SUM(II33,#REF!,#REF!,#REF!,#REF!,#REF!,#REF!,#REF!) ->  | Z33: =U33-Y33-AA33 ->  | FU33: 2023-01-01 | FV33: =FU33+14 -> 2023-01-15 | FW33: 2024-08-23 | FX33: 2022-12-30 | FY33: 2022-09-30 | FZ33: 2023-12-30 | GA33: 2022-12-30 | GB33: 2022-09-30 | GC33: 2023-12-30 | GD33: 2022-12-30 | GE33: 2022-09-30 | GF33: 2023-12-30 | GG33: 2022-12-30 | GH33: 2022-09-30 | GI33: 2023-12-30 | GJ33: 2022-12-30 | GK33: 2022-09-30 | GL33: 2023-12-30 | GM33: 2022-12-30 | GN33: 2022-09-30 | GO33: 2023-12-30 | GP33: 2022-12-30 | GQ33: 2022-09-30 | GR33: 2023-12-30 | GS33: 2022-12-30 | GT33: 2022-09-30 | GU33: 2023-12-30 | GV33: 2022-12-30 | GW33: 2022-09-30 | GX33: 2023-12-30 | GY33: 2022-12-30 | GZ33: 2022-09-30 | HA33: 2023-12-30 | HB33: 2022-12-30 | HC33: 2022-09-30 | HD33: 2023-12-30 | HE33: 2022-12-30 | HF33: 2022-09-30 | HG33: 2023-12-30 | HH33: 2022-12-30 | HI33: 2022-09-30 | HJ33: 2023-12-30 | HK33: 2022-12-30 | HL33: 2022-09-30 | HM33: 2023-12-30 | HN33: 2022-12-30 | HO33: 2022-09-30 | HP33: 2023-12-30 | HR33: АБ-1 | HS33: АБ-1 | HT33: АБСт | HV33: - | II33: 0 | IJ33: =IF(YEAR(#REF!)=HW$8,$J33,0) ->  | IK33: =IF(AND(YEAR(#REF!)<=HW$8,YEAR(#REF!)>HW$8),$J33,0) -> 
A34: 269 | B34: 13.1.2.5 | C34: СК00.01.1.03.3 | D34: ЖК "Салават Купере" Квартал №1 ж/д 3-3 | F34: Утеплитель минераловатный t=150 мм | G34: λ=0,038-0,041 Вт/м*К t=150мм p=131-159кг/м3 Горючесть НГ Каменная вата | H34: м3 | I34: 643 | J34: 6,058 | K34: 5,478 | L34: 580 | N34: 112 | Q34: 1 | R34: КПД, 1 Каркас | T34: Новое | U34: 4,054 | V34: 3,186 | W34: 423 | Y34: =SUM(II34,#REF!,#REF!,#REF!,#REF!,#REF!,#REF!,#REF!) ->  | FU34: 2022-11-01 | FV34: 2022-11-15 | FW34: 2024-02-24 | FX34: 2022-12-30 | FY34: 2022-09-30 | FZ34: 2023-12-30 | GA34: 2022-12-30 | GB34: 2022-09-30 | GC34: 2023-12-30 | GD34: 2022-12-30 | GE34: 2022-09-30 | GF34: 2023-12-30 | GG34: 2022-12-30 | GH34: 2022-09-30 | GI34: 2023-12-30 | GJ34: 2022-12-30 | GK34: 2022-09-30 | GL34: 2023-12-30 | GM34: 2022-12-30 | GN34: 2022-09-30 | GO34: 2023-12-30 | GP34: 2022-12-30 | GQ34: 2022-09-30 | GR34: 2023-12-30 | GS34: 2022-12-30 | GT34: 2022-09-30 | GU34: 2023-12-30 | GV34: 2022-12-30 | GW34: 2022-09-30 | GX34: 2023-12-30 | GY34: 2022-12-30 | GZ34: 2022-09-30 | HA34: 2023-12-30 | HB34: 2022-12-30 | HC34: 2022-09-30 | HD34: 2023-12-30 | HE34: 2022-12-30 | HF34: 2022-09-30 | HG34: 2023-12-30 | HH34: 2022-12-30 | HI34: 2022-09-30 | HJ34: 2023-12-30 | HK34: 2022-12-30 | HL34: 2022-09-30 | HM34: 2023-12-30 | HN34: 2022-12-30 | HO34: 2022-09-30 | HP34: 2023-12-30 | HR34: АБ-1 | HS34: АБ-1 | HT34: АБСт | HV34: - | II34: 0 | IJ34: =IF(YEAR(#REF!)=HW$8,$J34,0) ->  | IK34: =IF(AND(YEAR(#REF!)<=HW$8,YEAR(#REF!)>HW$8),$J34,0) -> 
A35: 277 | B35: 13.1.2.7 | C35: СК00.01.1.04.2 | D35: ЖК "Салават Купере" Квартал №1 ж/д 4-2 | F35: Утеплитель минераловатный t=150 мм | G35: λ=0,038-0,041 Вт/м*К t=150мм p=131-159кг/м3 Горючесть НГ Каменная вата | H35: м3 | I35: 824 | J35: =K35+L35 -> 7,766 | K35: 7,366 | L35: 400 | N35: 196 | Q35: 1 | R35: КПД, 1 Каркас | T35: Перепривязка | U35: 4,788 | V35: 3,763 | W35: 292 | Y35: =SUM(II35,#REF!,#REF!,#REF!,#REF!,#REF!,#REF!,#REF!) ->  | FU35: 2022-12-01 | FV35: 2022-12-15 | FW35: 2024-07-23 | FX35: 2023-01-01 | FY35: 2023-06-01 | FZ35: 2024-12-30 | GA35: 2023-01-01 | GB35: 2023-06-01 | GC35: 2024-12-30 | GD35: 2023-01-01 | GE35: 2023-06-01 | GF35: 2024-12-30 | GG35: 2023-01-01 | GH35: 2023-06-01 | GI35: 2024-12-30 | GJ35: 2023-01-01 | GK35: 2023-06-01 | GL35: 2024-12-30 | GM35: 2023-01-01 | GN35: 2023-06-01 | GO35: 2024-12-30 | GP35: 2023-01-01 | GQ35: 2022-09-01 | GR35: 2024-10-30 | GS35: 2023-01-01 | GT35: 2022-09-01 | GU35: 2024-10-30 | GV35: 2023-01-01 | GW35: 2022-09-01 | GX35: 2024-10-30 | GY35: 2023-01-01 | GZ35: 2024-01-10 | HA35: 2025-09-01 | HB35: 2023-01-01 | HC35: 2024-01-10 | HD35: 2025-09-01 | HE35: 2023-01-01 | HF35: 2023-02-01 | HG35: 2024-09-01 | HH35: 2023-01-01 | HI35: 2023-02-01 | HJ35: 2024-09-01 | HK35: 2023-01-01 | HL35: 2023-02-01 | HM35: 2024-09-01 | HN35: 2023-01-01 | HO35: 2023-02-01 | HP35: 2024-09-01 | HR35: АБ-1 | HS35: АБ-1 | HT35: АБСт | HV35: - | II35: 0 | IJ35: =IF(YEAR(#REF!)=HW$8,$J35,0) ->  | IK35: =IF(AND(YEAR(#REF!)<=HW$8,YEAR(#REF!)>HW$8),$J35,0) -> 
A36: 278 | B36: 13.1.2.8 | C36: СК00.01.1.04.3 | D36: ЖК "Салават Купере" Квартал №1 ж/д 4-3 | F36: Утеплитель минераловатный t=150 мм | G36: λ=0,038-0,041 Вт/м*К t=150мм p=131-159кг/м3 Горючесть НГ Каменная вата | H36: м3 | I36: 1,069 | J36: 10,078 | K36: 9,498 | L36: 580 | N36: 140 | Q36: 1 | R36: КПД, 1 Каркас | T36: Новое | U36: 6,174 | V36: 4,853 | W36: 423 | Y36: =SUM(II36,#REF!,#REF!,#REF!,#REF!,#REF!,#REF!,#REF!) ->  | FU36: 2023-04-01 | FV36: 2023-04-15 | FW36: 2024-11-21 | FX36: 2023-01-01 | FY36: 2023-06-01 | FZ36: 2024-12-30 | GA36: 2023-01-01 | GB36: 2023-06-01 | GC36: 2024-12-30 | GD36: 2023-01-01 | GE36: 2023-06-01 | GF36: 2024-12-30 | GG36: 2023-01-01 | GH36: 2023-06-01 | GI36: 2024-12-30 | GJ36: 2023-01-01 | GK36: 2023-06-01 | GL36: 2024-12-30 | GM36: 2023-01-10 | GN36: 2023-01-10 | GO36: 2024-12-30 | GP36: 2023-01-10 | GQ36: 2022-12-01 | GR36: 2024-10-30 | GS36: 2023-01-10 | GT36: 2022-12-01 | GU36: 2024-10-30 | GV36: 2023-01-10 | GW36: 2022-12-01 | GX36: 2024-10-30 | GY36: 2023-01-10 | GZ36: 2024-01-10 | HA36: 2025-09-01 | HB36: 2023-01-10 | HC36: 2024-01-10 | HD36: 2025-09-01 | HE36: 2023-01-10 | HF36: 2023-02-01 | HG36: 2024-09-01 | HH36: 2023-01-10 | HI36: 2023-02-01 | HJ36: 2024-09-01 | HK36: 2023-01-10 | HL36: 2023-02-01 | HM36: 2024-09-01 | HN36: 2023-01-10 | HO36: 2023-02-01 | HP36: 2024-09-01 | HR36: АБ-1 | HS36: АБ-1 | HT36: АБСт | HV36: - | II36: 0 | IJ36: =IF(YEAR(#REF!)=HW$8,$J36,0) ->  | IK36: =IF(AND(YEAR(#REF!)<=HW$8,YEAR(#REF!)>HW$8),$J36,0) -> 
A37: 267 | B37: 13.1.2.9 | C37: СК00.01.1.01.1 | D37: ЖК "Салават Купере" Квартал №1 ж/д 1-1 | F37: Утеплитель минераловатный t=150 мм | G37: λ=0,038-0,041 Вт/м*К t=150мм p=131-159кг/м3 Горючесть НГ Каменная вата | H37: м3 | I37: 936 | J37: 8,818 | K37: 8,418 | L37: 400 | N37: 160 | Q37: 1 | R37: КПД, 1 Каркас | T37: Новое | U37: 5,472 | V37: 4,301 | W37: 292 | Y37: =SUM(II37,#REF!,#REF!,#REF!,#REF!,#REF!,#REF!,#REF!) ->  | Z37: =U37-Y37-AA37 ->  | FU37: 2023-05-01 | FV37: =FU37+14 -> 2023-05-15 | FW37: 2024-12-21 | FX37: 2023-04-01 | FY37: 2022-10-30 | FZ37: 2024-08-30 | GA37: 2023-04-01 | GB37: 2022-10-30 | GC37: 2024-08-30 | GD37: 2023-04-01 | GE37: 2022-10-30 | GF37: 2024-08-30 | GG37: 2023-04-01 | GH37: 2022-10-30 | GI37: 2024-08-30 | GJ37: 2023-04-01 | GK37: 2022-10-30 | GL37: 2024-08-30 | GM37: 2023-04-01 | GN37: 2022-10-30 | GO37: 2024-08-30 | GP37: 2023-04-01 | GQ37: 2022-10-01 | GR37: 2024-07-30 | GS37: 2023-04-01 | GT37: 2022-10-01 | GU37: 2024-07-30 | GV37: 2023-04-01 | GW37: 2022-10-01 | GX37: 2024-07-30 | GY37: 2023-04-01 | GZ37: 2024-01-10 | HA37: 2025-09-01 | HB37: 2023-04-01 | HC37: 2024-01-10 | HD37: 2025-09-01 | HE37: 2023-04-01 | HF37: 2023-04-01 | HG37: 2024-12-01 | HH37: 2023-04-01 | HI37: 2023-04-01 | HJ37: 2024-12-01 | HK37: 2023-04-01 | HL37: 2023-04-01 | HM37: 2024-12-01 | HN37: 2023-04-01 | HO37: 2023-04-01 | HP37: 2024-12-01 | HR37: АБ-1 | HS37: АБ-1 | HT37: АБСт | HV37: - | II37: =SUM(HW37:IH37) -> 0 | IJ37: =IF(YEAR(#REF!)=HW$8,$J37,0) ->  | IK37: =IF(AND(YEAR(#REF!)<=HW$8,YEAR(#REF!)>HW$8),$J37,0) -> 
A38: 268 | B38: 13.1.2.10 | C38: СК00.01.1.01.2 | D38: ЖК "Салават Купере" Квартал №1 ж/д 1-2 | F38: Утеплитель минераловатный t=150 мм | G38: λ=0,038-0,041 Вт/м*К t=150мм p=131-159кг/м3 Горючесть НГ Каменная вата | H38: м3 | I38: 933 | J38: 8,789 | K38: 8,209 | L38: 580 | N38: 168 | Q38: 1 | R38: КПД, 1 Каркас | T38: Перепривязка | U38: 5,336 | V38: 4,194 | W38: 423 | Y38: =SUM(II38,#REF!,#REF!,#REF!,#REF!,#REF!,#REF!,#REF!) ->  | FU38: 2023-02-01 | FV38: 2023-02-15 | FW38: 2024-09-23 | FX38: 2023-04-01 | FY38: 2022-10-30 | FZ38: 2024-08-30 | GA38: 2023-04-01 | GB38: 2022-10-30 | GC38: 2024-08-30 | GD38: 2023-04-01 | GE38: 2022-10-30 | GF38: 2024-08-30 | GG38: 2023-04-01 | GH38: 2022-10-30 | GI38: 2024-08-30 | GJ38: 2023-04-01 | GK38: 2022-10-30 | GL38: 2024-08-30 | GM38: 2023-04-01 | GN38: 2022-10-30 | GO38: 2024-08-30 | GP38: 2023-04-01 | GQ38: 2022-11-01 | GR38: 2024-07-30 | GS38: 2023-04-01 | GT38: 2022-11-01 | GU38: 2024-07-30 | GV38: 2023-04-01 | GW38: 2022-11-01 | GX38: 2024-07-30 | GY38: 2023-04-01 | GZ38: 2024-01-10 | HA38: 2025-09-01 | HB38: 2023-04-01 | HC38: 2024-01-10 | HD38: 2025-09-01 | HE38: 2023-04-01 | HF38: 2023-04-01 | HG38: 2024-12-01 | HH38: 2023-04-01 | HI38: 2023-04-01 | HJ38: 2024-12-01 | HK38: 2023-04-01 | HL38: 2023-04-01 | HM38: 2024-12-01 | HN38: 2023-04-01 | HO38: 2023-04-01 | HP38: 2024-12-01 | HR38: АБ-1 | HS38: АБ-1 | HT38: АБСт | HV38: - | II38: 0 | IJ38: =IF(YEAR(#REF!)=HW$8,$J38,0) ->  | IK38: =IF(AND(YEAR(#REF!)<=HW$8,YEAR(#REF!)>HW$8),$J38,0) -> 
A39: 269 | B39: 13.1.2.11 | C39: СК00.01.1.01.3 | D39: ЖК "Салават Купере" Квартал №1 ж/д 1-3 | F39: Утеплитель минераловатный t=150 мм | G39: λ=0,038-0,041 Вт/м*К t=150мм p=131-159кг/м3 Горючесть НГ Каменная вата | H39: м3 | I39: 643 | J39: 6,058 | K39: 5,478 | L39: 580 | N39: 112 | Q39: 1 | R39: КПД, 1 Каркас | T39: Перепривязка | U39: 4,054 | V39: 3,186 | W39: 423 | Y39: =SUM(II39,#REF!,#REF!,#REF!,#REF!,#REF!,#REF!,#REF!) ->  | FU39: 2022-12-01 | FV39: 2022-12-15 | FW39: 2024-03-25 | FX39: 2023-04-01 | FY39: 2022-10-30 | FZ39: 2024-08-30 | GA39: 2023-04-01 | GB39: 2022-10-30 | GC39: 2024-08-30 | GD39: 2023-04-01 | GE39: 2022-10-30 | GF39: 2024-08-30 | GG39: 2023-04-01 | GH39: 2022-10-30 | GI39: 2024-08-30 | GJ39: 2023-04-01 | GK39: 2022-10-30 | GL39: 2024-08-30 | GM39: 2023-04-01 | GN39: 2022-10-30 | GO39: 2024-08-30 | GP39: 2023-04-01 | GQ39: 2022-09-01 | GR39: 2024-07-30 | GS39: 2023-04-01 | GT39: 2022-09-01 | GU39: 2024-07-30 | GV39: 2023-04-01 | GW39: 2022-09-01 | GX39: 2024-07-30 | GY39: 2023-04-01 | GZ39: 2024-01-10 | HA39: 2025-09-01 | HB39: 2023-04-01 | HC39: 2024-01-10 | HD39: 2025-09-01 | HE39: 2023-04-01 | HF39: 2023-04-01 | HG39: 2024-12-01 | HH39: 2023-04-01 | HI39: 2023-04-01 | HJ39: 2024-12-01 | HK39: 2023-04-01 | HL39: 2023-04-01 | HM39: 2024-12-01 | HN39: 2023-04-01 | HO39: 2023-04-01 | HP39: 2024-12-01 | HR39: АБ-1 | HS39: АБ-1 | HT39: АБСт | HV39: - | II39: 0 | IJ39: =IF(YEAR(#REF!)=HW$8,$J39,0) ->  | IK39: =IF(AND(YEAR(#REF!)<=HW$8,YEAR(#REF!)>HW$8),$J39,0) -> 
A40: 267 | B40: 13.1.2.12 | C40: СК00.01.1.02.1 | D40: ЖК "Салават Купере" Квартал №1 ж/д 2-1 | F40: Утеплитель минераловатный t=150 мм | G40: λ=0,038-0,041 Вт/м*К t=150мм p=131-159кг/м3 Горючесть НГ Каменная вата | H40: м3 | I40: 936 | J40: 8,818 | K40: 8,418 | L40: 400 | N40: 160 | Q40: 1 | R40: КПД, 1 Каркас | T40: Перепривязка | U40: 5,472 | V40: 4,301 | W40: 292 | Y40: =SUM(II40,#REF!,#REF!,#REF!,#REF!,#REF!,#REF!,#REF!) ->  | FU40: 2023-06-01 | FV40: 2023-06-15 | FW40: 2025-01-21 | FX40: 2023-07-01 | FY40: 2023-02-01 | FZ40: 2024-10-30 | GA40: 2023-07-01 | GB40: 2023-02-01 | GC40: 2024-10-30 | GD40: 2023-07-01 | GE40: 2023-02-01 | GF40: 2024-10-30 | GG40: 2023-07-01 | GH40: 2023-02-01 | GI40: 2024-10-30 | GJ40: 2023-07-01 | GK40: 2023-02-01 | GL40: 2024-10-30 | GM40: 2023-07-01 | GN40: 2023-02-01 | GO40: 2024-10-30 | GP40: 2023-07-01 | GQ40: 2022-12-01 | GR40: 2024-10-30 | GS40: 2023-07-01 | GT40: 2022-12-01 | GU40: 2024-10-30 | GV40: 2023-07-01 | GW40: 2022-12-01 | GX40: 2024-10-30 | GY40: 2023-07-01 | GZ40: 2024-06-30 | HA40: 2025-11-30 | HB40: 2023-07-01 | HC40: 2024-06-30 | HD40: 2025-11-30 | HE40: 2023-07-01 | HF40: 2023-07-01 | HG40: 2024-12-30 | HH40: 2023-07-01 | HI40: 2023-07-01 | HJ40: 2024-12-30 | HK40: 2023-07-01 | HL40: 2023-07-01 | HM40: 2024-12-30 | HN40: 2023-07-01 | HO40: 2023-07-01 | HP40: 2024-12-30 | HR40: АБ-1 | HS40: АБ-1 | HT40: АБСт | HV40: - | II40: 0 | IJ40: =IF(YEAR(#REF!)=HW$8,$J40,0) ->  | IK40: =IF(AND(YEAR(#REF!)<=HW$8,YEAR(#REF!)>HW$8),$J40,0) -> 
B41: * Коммерческие здания: Адм здание 17-3 ПК-9 СГ, Торгово-офисное здание ПК-5 "Мой Ритм", Бизнес-центр ПК-1 "Мой Ритм", Бизнес-центр М-3 "Седьмое Небо", Технопарк М-4 "Седьмое Небо", Административное здание с МУПг ул.Рахматуллина, Здание по ул.Сыртлановой 2, Административно-офисное здание по ул.Шмидта 35Б
B43: Ввод квартир 2020-2028 | J43: 2020 | GA43: 2025 | GB43: 2026 | GC43: 2027 | GG43: 2025 | GH43: 2026 | GI43: 2027 | GJ43: 2025 | GK43: 2026 | GL43: 2027 | GM43: 2025 | GN43: 2026 | GO43: 2027 | GP43: 2025 | GQ43: 2026 | GR43: 2027 | GS43: 2025 | GT43: 2026 | GU43: 2027 | GV43: 2025 | GW43: 2026 | GX43: 2027 | GY43: 2025 | GZ43: 2026 | HA43: 2027 | HB43: 2025 | HC43: 2026 | HD43: 2027 | HE43: 2025 | HF43: 2026 | HG43: 2027 | HH43: 2025 | HI43: 2026 | HJ43: 2027 | HK43: 2025 | HL43: 2026 | HM43: 2027 | HN43: 2025 | HO43: 2026 | HP43: 2027
B44: Итого АБД | J44: 2075 | K44: =#REF!+#REF!+K40 ->  | GA44: 3195 | GB44: 8134 | GC44: 1602 | GG44: 3195 | GH44: 8134 | GI44: 1602 | GJ44: 3195 | GK44: 8134 | GL44: 1602 | GM44: 3195 | GN44: 8134 | GO44: 1602 | GP44: 3195 | GQ44: 8134 | GR44: 1602 | GS44: 3195 | GT44: 8134 | GU44: 1602 | GV44: 3195 | GW44: 8134 | GX44: 1602 | GY44: 3195 | GZ44: 8134 | HA44: 1602 | HB44: 3195 | HC44: 8134 | HD44: 1602 | HE44: 3195 | HF44: 8134 | HG44: 1602 | HH44: 3195 | HI44: 8134 | HJ44: 1602 | HK44: 3195 | HL44: 8134 | HM44: 1602 | HN44: 3195 | HO44: 8134 | HP44: 1602
B45: Итого ГЖФ | J45: 1020 | GA45: 0 | GB45: 0 | GC45: 0 | GG45: 0 | GH45: 0 | GI45: 0 | GJ45: 0 | GK45: 0 | GL45: 0 | GM45: 0 | GN45: 0 | GO45: 0 | GP45: 0 | GQ45: 0 | GR45: 0 | GS45: 0 | GT45: 0 | GU45: 0 | GV45: 0 | GW45: 0 | GX45: 0 | GY45: 0 | GZ45: 0 | HA45: 0 | HB45: 0 | HC45: 0 | HD45: 0 | HE45: 0 | HF45: 0 | HG45: 0 | HH45: 0 | HI45: 0 | HJ45: 0 | HK45: 0 | HL45: 0 | HM45: 0 | HN45: 0 | HO45: 0 | HP45: 0 | HQ45: 0
B46: Всего квартир АБД+ГЖФ | J46: =J44+J45 -> 3095 | K46: =K44+K45 ->  | L46: 0 | M46: 0 | N46: 0 | O46: 0 | P46: 0 | Q46: 0 | R46: 0 | S46: 0 | T46: 0 | U46: 0 | V46: 0 | W46: 0 | X46: 0 | Y46: 0 | Z46: 0 | AA46: 0 | AB46: 0 | AC46: 0 | AD46: 0 | AE46: 0 | AF46: 0 | AG46: 0 | AH46: 0 | AI46: 0 | AJ46: 0 | AK46: 0 | AL46: 0 | AM46: 0 | AN46: 0 | AO46: 0 | AP46: 0 | AQ46: 0 | AR46: 0 | AS46: 0 | AT46: 0 | AU46: 0 | AV46: 0 | AW46: 0 | AX46: 0 | AY46: 0 | AZ46: 0 | BA46: 0 | BB46: 0 | BC46: 0 | BD46: 0 | BE46: 0 | BF46: 0 | BG46: 0 | BH46: 0 | BI46: 0 | BJ46: 0 | BK46: 0 | BL46: 0 | BM46: 0 | BN46: 0 | BO46: 0 | BP46: 0 | BQ46: =BQ44+BQ45 -> 0 | BR46: 0 | BS46: 0 | BT46: 0 | BU46: 0 | BV46: 0 | BW46: 0 | BX46: 0 | BY46: 0 | BZ46: 0 | CA46: 0 | CB46: 0 | CC46: 0 | CD46: 0 | CE46: 0 | CF46: 0 | CG46: 0 | CH46: 0 | CI46: 0 | CJ46: 0 | CK46: 0 | CL46: 0 | CM46: 0 | CN46: 0 | CO46: 0 | CP46: 0 | CQ46: 0 | CR46: 0 | CS46: 0 | CT46: 0 | CU46: 0 | CV46: 0 | CW46: 0 | CX46: 0 | CY46: 0 | CZ46: 0 | DA46: 0 | DB46: 0 | DC46: 0 | DD46: 0 | DE46: 0 | DF46: 0 | DG46: 0 | DH46: 0 | DI46: 0 | DJ46: 0 | DK46: 0 | DL46: 0 | DM46: 0 | DN46: 0 | DO46: 0 | DP46: 0 | DQ46: 0 | DR46: 0 | DS46: 0 | DT46: 0 | DU46: 0 | DV46: 0 | DW46: 0 | DX46: 0 | DY46: 0 | DZ46: 0 | EA46: 0 | EB46: 0 | EC46: =EC44+EC45 -> 0 | ED46: 0 | EE46: 0 | EF46: 0 | EG46: 0 | EH46: 0 | EI46: 0 | EJ46: 0 | EK46: 0 | EL46: 0 | EM46: 0 | EN46: 0 | EO46: 0 | EP46: 0 | EQ46: 0 | ER46: 0 | ES46: 0 | ET46: 0 | EU46: 0 | EV46: 0 | EW46: 0 | EX46: 0 | EY46: 0 | EZ46: 0 | FA46: 0 | FB46: 0 | FC46: 0 | FD46: 0 | FE46: 0 | FF46: 0 | FG46: 0 | FH46: 0 | FI46: 0 | FJ46: 0 | FK46: 0 | FL46: 0 | FM46: 0 | FN46: 0 | FO46: 0 | FP46: 0 | FQ46: 0 | FR46: 0 | FS46: 0 | FT46: 0 | FU46: 0 | FV46: 0 | FW46: 0 | FX46: 0 | FY46: 0 | FZ46: 0 | GA46: =GA44+GA45 -> 3195 | GB46: =GB44+GB45 -> 8134 | GC46: =GC44+GC45 -> 1602 | GG46: =GG44+GG45 -> 3195 | GH46: 8134 | GI46: 1602 | GJ46: 3195 | GK46: 8134 | GL46: 1602 | GM46: 3195 | GN46: 8134 | GO46: 1602 | GP46: 3195 | GQ46: 8134 | GR46: 1602 | GS46: 3195 | GT46: 8134 | GU46: 1602 | GV46: 3195 | GW46: 8134 | GX46: 1602 | GY46: 3195 | GZ46: 8134 | HA46: 1602 | HB46: 3195 | HC46: 8134 | HD46: 1602 | HE46: 3195 | HF46: 8134 | HG46: 1602 | HH46: 3195 | HI46: 8134 | HJ46: 1602 | HK46: 3195 | HL46: 8134 | HM46: 1602 | HN46: 3195 | HO46: 8134 | HP46: 1602 | HQ46: 0
F47: Утеплитель минераловатный t=150 мм | G47: λ=0,038-0,041 Вт/м*К t=150мм p=131-159кг/м3 Горючесть НГ Каменная вата | H47: м3 | J47: =SUM(IM47:IX47) -> 0 | IM47: =SUMIF($F$13:$F$40,$F$14,IM13:IM40) -> 0
D48: Итого | F48: Утеплитель минераловатный t=100мм | G48: λб= не более 0,041 Вт/м*К p=32-44кг/м3 горючесть НГ, каменная вата | H48: м3 | J48: =SUM(IM48:IX48) -> 0 | IM48: =SUMIF($F$13:$F$40,$F$20,IM13:IM41) -> 0
F49: Утеплитель минераловатный t=50мм | G49: λ= не более 0,039 Вт/м*К p=72-100кг/м3 горючесть НГ, каменная вата | H49: м3 | J49: =SUM(IM49:IX49) -> 0 | IM49: =SUMIF($F$13:$F$40,$F$21,IM13:IM42) -> 0
AB56: =IG56+#REF!+IW56+#REF!+#REF!+#REF!+#REF!+#REF! ->  | AC56: =J56-AB56 -> 
AB61: =IG61+#REF!+IW61+#REF!+#REF!+#REF!+#REF!+#REF! ->  | AC61: =J61-AB61 -> 
AB63: =IG63+#REF!+IW63+#REF!+#REF!+#REF!+#REF!+#REF! ->  | AC63: =J63-AB63 -> 
